Workbook

Sheet Datos
A1: Alquiler de Coches Benito SA | G1: Otros Datos
A2: Campos Importados de Nuestro Programa de Gestion | G2: Margen Medio de Canales Sobre Facturación
A3: Fecha de Facturacion | B3: Canales | C3: Nacionalidad | D3: Facturación | E3: Nº de Contratos | G3: Canal | H3: % Ganancia
A4: 39692 | B4: Directo | C4: Italia-Francia | D4: 388356 | E4: 1327.5 | G4: Internet | H4: 0.4
A5: 40118 | B5: Directo | C5: Benelux | D5: 398627 | E5: 387 | G5: Directo | H5: 0.4
A6: 39600 | B6: Internet | C6: Alemania | D6: 398072 | E6: 2947.5 | G6: Agencia | H6: 0.2
A7: 40238 | B7: Directo | C7: America Norte-Sur | D7: 399219 | E7: 1413 | G7: Hoteles | H7: 0.15
A8: 40360 | B8: Directo | C8: España | D8: 399351 | E8: 678
A9: 39845 | B9: Directo | C9: Resto de Europa | D9: 398575 | E9: 543
A10: 39448 | B10: Internet | C10: Reino Unido | D10: 302173 | E10: 2602.5
A11: 40210 | B11: Directo | C11: Rusia-Paises del Este | D11: 397231 | E11: 1207.5
A12: 39448 | B12: Directo | C12: Paises Nórdicos | D12: 107546 | E12: 979.5
A13: 40269 | B13: Directo | C13: Resto de Paises | D13: 392909 | E13: 2503.5
A14: 39904 | B14: Directo | C14: Italia-Francia | D14: 382188 | E14: 1708.5
A15: 40422 | B15: Directo | C15: America Norte-Sur | D15: 394309 | E15: 2397
A16: 40391 | B16: Directo | C16: España | D16: 391642 | E16: 2092.5
A17: 39814 | B17: Directo | C17: Rusia-Paises del Este | D17: 389284 | E17: 2778
A18: 39814 | B18: Directo | C18: Resto de Europa | D18: 389158 | E18: 562.5
A19: 39600 | B19: Directo | C19: America Norte-Sur | D19: 387124 | E19: 1611
A20: 39479 | B20: Internet | C20: Reino Unido | D20: 357681 | E20: 2506.5
A21: 40360 | B21: Internet | C21: Alemania | D21: 393863 | E21: 874.5
A22: 39722 | B22: Internet | C22: Benelux | D22: 398576 | E22: 2508
A23: 40026 | B23: Directo | C23: Resto de Paises | D23: 388601 | E23: 2548.5
A24: 39845 | B24: Directo | C24: Resto de Paises | D24: 380091 | E24: 1101
A25: 39479 | B25: Directo | C25: Reino Unido | D25: 172529 | E25: 2008.5
A26: 39479 | B26: Directo | C26: Paises Nórdicos | D26: 135697 | E26: 2463
A27: 39539 | B27: Internet | C27: Benelux | D27: 386328 | E27: 2007
A28: 39508 | B28: Directo | C28: Resto de Europa | D28: 381495 | E28: 688.5
A29: 40330 | B29: Directo | C29: Resto de Europa | D29: 378552 | E29: 1905
A30: 40330 | B30: Directo | C30: America Norte-Sur | D30: 366628 | E30: 781.5
A31: 39508 | B31: Directo | C31: Paises Nórdicos | D31: 245292 | E31: 736.5
A32: 39508 | B32: Directo | C32: Reino Unido | D32: 384673 | E32: 1854
A33: 40026 | B33: Directo | C33: Rusia-Paises del Este | D33: 388434 | E33: 1060.5
A34: 39873 | B34: Directo | C34: Italia-Francia | D34: 378992 | E34: 2506.5
A35: 40269 | B35: Directo | C35: España | D35: 391310 | E35: 1083
A36: 40210 | B36: Internet | C36: Resto de Paises | D36: 373816 | E36: 1837.5 | J36: Sucursal 3
A37: 40118 | B37: Directo | C37: Alemania | D37: 393239 | E37: 1194 | J37: Sucursal 8 | L37: Internet
A38: 40210 | B38: Directo | C38: Alemania | D38: 393204 | E38: 2379 | J38: Sucursal 6 | L38: Directo
A39: 39508 | B39: Directo | C39: Paises Nórdicos | D39: 134965 | E39: 2661 | J39: Sucursal 4 | L39: Agencia
A40: 39783 | B40: Directo | C40: Rusia-Paises del Este | D40: 384646 | E40: 2584.5 | J40: Sucursal 10 | L40: Hoteles
A41: 39722 | B41: Directo | C41: Resto de Europa | D41: 375581 | E41: 2913 | J41: Sucursal 7
A42: 39539 | B42: Directo | C42: Reino Unido | D42: 291496 | E42: 1203 | J42: Sucursal 9
A43: 40391 | B43: Directo | C43: America Norte-Sur | D43: 358566 | E43: 1992 | J43: Sucursal 5
A44: 39722 | B44: Internet | C44: Benelux | D44: 385744 | E44: 2511 | J44: Sucursal 2
A45: 39539 | B45: Directo | C45: Paises Nórdicos | D45: 280609 | E45: 1531.5 | J45: Sucursal 1
A46: 40360 | B46: Internet | C46: Resto de Paises | D46: 366443 | E46: 852
A47: 39661 | B47: Directo | C47: Rusia-Paises del Este | D47: 384590 | E47: 2023.5
A48: 40238 | B48: Directo | C48: España | D48: 379772 | E48: 2062.5
A49: 39600 | B49: Internet | C49: Italia-Francia | D49: 378350 | E49: 2613
A50: 39965 | B50: Internet | C50: Benelux | D50: 382786 | E50: 763.5
A51: 40179 | B51: Internet | C51: España | D51: 370703 | E51: 2952
A52: 40026 | B52: Directo | C52: Alemania | D52: 393041 | E52: 511.5 | L52: Agencia
A53: 39569 | B53: Internet | C53: Resto de Paises | D53: 366156 | E53: 735
A54: 39569 | B54: Directo | C54: Paises Nórdicos | D54: 255782 | E54: 705
A55: 40148 | B55: Internet | C55: España | D55: 369464 | E55: 2889
A56: 40269 | B56: Internet | C56: Italia-Francia | D56: 375923 | E56: 507
A57: 40057 | B57: Internet | C57: Italia-Francia | D57: 366502 | E57: 2508
A58: 39934 | B58: Directo | C58: Alemania | D58: 384066 | E58: 1003.5 | L58: Hoteles
A59: 39479 | B59: Directo | C59: America Norte-Sur | D59: 356679 | E59: 1672.5
A60: 39995 | B60: Directo | C60: America Norte-Sur | D60: 349104 | E60: 1963.5
A61: 40026 | B61: Directo | C61: Benelux | D61: 382683 | E61: 2278.5
A62: 40299 | B62: Directo | C62: Resto de Europa | D62: 369353 | E62: 2293.5
A63: 40238 | B63: Internet | C63: Resto de Paises | D63: 349304 | E63: 439.5
A64: 39569 | B64: Directo | C64: Reino Unido | D64: 133335 | E64: 2031
A65: 40179 | B65: Internet | C65: Rusia-Paises del Este | D65: 376174 | E65: 1810.5
A66: 39600 | B66: Directo | C66: Resto de Europa | D66: 357917 | E66: 1305
A67: 40179 | B67: Directo | C67: America Norte-Sur | D67: 346430 | E67: 2922
A68: 39600 | B68: Directo | C68: Reino Unido | D68: 362465 | E68: 1519.5
A69: 39600 | B69: Directo | C69: Paises Nórdicos | D69: 367549 | E69: 2220
A70: 39600 | B70: Directo | C70: Benelux | D70: 382655 | E70: 2392.5
A71: 39448 | B71: Internet | C71: Italia-Francia | D71: 363821 | E71: 460.5
A72: 40148 | B72: Directo | C72: Alemania | D72: 382590 | E72: 607.5
A73: 39630 | B73: Agencia | C73: Resto de Paises | D73: 336077 | E73: 1107
A74: 39600 | B74: Directo | C74: Reino Unido | D74: 230068 | E74: 2170.5
A75: 39600 | B75: Internet | C75: Paises Nórdicos | D75: 171282 | E75: 1701
A76: 39448 | B76: Internet | C76: España | D76: 361435 | E76: 1675.5
A77: 39965 | B77: Internet | C77: Rusia-Paises del Este | D77: 358244 | E77: 2380.5
A78: 39508 | B78: Internet | C78: Resto de Europa | D78: 347187 | E78: 592.5
A79: 39845 | B79: Directo | C79: Benelux | D79: 375123 | E79: 2395.5
A80: 39479 | B80: Agencia | C80: Resto de Paises | D80: 321987 | E80: 2893.5
A81: 39965 | B81: Directo | C81: America Norte-Sur | D81: 341679 | E81: 582
A82: 40330 | B82: Directo | C82: Benelux | D82: 373855 | E82: 1057.5
A83: 39630 | B83: Internet | C83: Paises Nórdicos | D83: 243141 | E83: 1086
A84: 40057 | B84: Internet | C84: Italia-Francia | D84: 356366 | E84: 2133
A85: 39661 | B85: Internet | C85: Rusia-Paises del Este | D85: 353624 | E85: 2418
A86: 39692 | B86: Internet | C86: España | D86: 356644 | E86: 603
A87: 39753 | B87: Directo | C87: Alemania | D87: 367795 | E87: 1363.5
A88: 40269 | B88: Internet | C88: Resto de Europa | D88: 343393 | E88: 2065.5
A89: 39630 | B89: Directo | C89: Reino Unido | D89: 290066 | E89: 2722.5
A90: 39904 | B90: Internet | C90: España | D90: 347183 | E90: 1330.5
A91: 39692 | B91: Internet | C91: Alemania | D91: 367069 | E91: 2079
A92: 39661 | B92: Directo | C92: Reino Unido | D92: 283794 | E92: 984
A93: 39845 | B93: Internet | C93: Rusia-Paises del Este | D93: 352997 | E93: 2373
A94: 39753 | B94: Directo | C94: Italia-Francia | D94: 356233 | E94: 841.5
A95: 39722 | B95: Internet | C95: Rusia-Paises del Este | D95: 344875 | E95: 1600.5
A96: 39814 | B96: Internet | C96: España | D96: 345052 | E96: 2392.5
A97: 39783 | B97: Directo | C97: Italia-Francia | D97: 353787 | E97: 2542.5
A98: 39814 | B98: Internet | C98: Alemania | D98: 360882 | E98: 1197
A99: 40210 | B99: Internet | C99: Resto de Europa | D99: 336858 | E99: 2773.5
A100: 39873 | B100: Directo | C100: Benelux | D100: 362464 | E100: 1365
A101: 39508 | B101: Directo | C101: America Norte-Sur | D101: 336620 | E101: 610.5
A102: 40179 | B102: Agencia | C102: Resto de Paises | D102: 291362 | E102: 1387.5
A103: 39661 | B103: Internet | C103: Paises Nórdicos | D103: 100252 | E103: 1927.5
A104: 39692 | B104: Hoteles | C104: Resto de Paises | D104: 290864 | E104: 1734
A105: 40452 | B105: Internet | C105: Resto de Europa | D105: 333524 | E105: 2620.5
A106: 39845 | B106: Internet | C106: España | D106: 343372 | E106: 717
A107: 39934 | B107: Internet | C107: Rusia-Paises del Este | D107: 340451 | E107: 549
A108: 39569 | B108: Directo | C108: Italia-Francia | D108: 333757 | E108: 2377.5
A109: 39692 | B109: Directo | C109: Reino Unido | D109: 396148 | E109: 1354.5
A110: 39479 | B110: Internet | C110: Alemania | D110: 345627 | E110: 2611.5
A111: 39845 | B111: Directo | C111: America Norte-Sur | D111: 326460 | E111: 2908.5
A112: 39995 | B112: Hoteles | C112: Resto de Paises | D112: 280704 | E112: 3000
A113: 40330 | B113: Directo | C113: Benelux | D113: 355271 | E113: 1831.5
A114: 39692 | B114: Internet | C114: Paises Nórdicos | D114: 289741 | E114: 2572.5
A115: 40087 | B115: Directo | C115: America Norte-Sur | D115: 315098 | E115: 2727
A116: 39692 | B116: Internet | C116: Paises Nórdicos | D116: 108383 | E116: 1497
A117: 39692 | B117: Directo | C117: Reino Unido | D117: 122408 | E117: 2203.5
A118: 39692 | B118: Internet | C118: America Norte-Sur | D118: 310169 | E118: 1801.5
A119: 39722 | B119: Internet | C119: Paises Nórdicos | D119: 336207 | E119: 1479
A120: 40422 | B120: Agencia | C120: España | D120: 335208 | E120: 2082
A121: 39753 | B121: Internet | C121: Rusia-Paises del Este | D121: 320775 | E121: 1338
A122: 39722 | B122: Directo | C122: Reino Unido | D122: 381537 | E122: 1780.5
A123: 40330 | B123: Internet | C123: Alemania | D123: 344281 | E123: 2763
A124: 40422 | B124: Internet | C124: Resto de Europa | D124: 326429 | E124: 2505
A125: 39479 | B125: Internet | C125: Benelux | D125: 348013 | E125: 2689.5
A126: 39508 | B126: Internet | C126: Benelux | D126: 345735 | E126: 526.5
A127: 39600 | B127: Hoteles | C127: Resto de Paises | D127: 278829 | E127: 2436
A128: 39630 | B128: Internet | C128: Resto de Europa | D128: 311104 | E128: 2635.5
A129: 40452 | B129: Internet | C129: Alemania | D129: 341993 | E129: 2307
A130: 40087 | B130: Directo | C130: Italia-Francia | D130: 331377 | E130: 1162.5
A131: 39965 | B131: Directo | C131: Italia-Francia | D131: 326837 | E131: 601.5
A132: 39722 | B132: Directo | C132: Resto de Europa | D132: 297190 | E132: 1767
A133: 40299 | B133: Agencia | C133: Alemania | D133: 339525 | E133: 1612.5
A134: 40148 | B134: Agencia | C134: Rusia-Paises del Este | D134: 313466 | E134: 2808
A135: 39753 | B135: Agencia | C135: Paises Nórdicos | D135: 188603 | E135: 855
A136: 39508 | B136: Agencia | C136: Rusia-Paises del Este | D136: 306221 | E136: 1605
A137: 40360 | B137: Internet | C137: Benelux | D137: 335973 | E137: 949.5
A138: 39934 | B138: Internet | C138: America Norte-Sur | D138: 307482 | E138: 459
A139: 40238 | B139: Hoteles | C139: España | D139: 327855 | E139: 1315.5
A140: 40210 | B140: Directo | C140: España | D140: 327180 | E140: 1944
A141: 39845 | B141: Internet | C141: Italia-Francia | D141: 318248 | E141: 1597.5
A142: 39753 | B142: Directo | C142: Reino Unido | D142: 179304 | E142: 2779.5
A143: 40330 | B143: Hoteles | C143: Resto de Paises | D143: 264161 | E143: 1599
A144: 40391 | B144: Agencia | C144: Resto de Paises | D144: 260879 | E144: 843
A145: 39783 | B145: Agencia | C145: Paises Nórdicos | D145: 399207 | E145: 2626.5
A146: 39783 | B146: Directo | C146: Reino Unido | D146: 397191 | E146: 2620.5
A147: 39753 | B147: Agencia | C147: Rusia-Paises del Este | D147: 300601 | E147: 1459.5
A148: 40391 | B148: Hoteles | C148: Resto de Paises | D148: 259971 | E148: 2313
A149: 39479 | B149: Internet | C149: Italia-Francia | D149: 316426 | E149: 1312.5
A150: 40299 | B150: Hoteles | C150: Benelux | D150: 327830 | E150: 421.5
A151: 39995 | B151: Internet | C151: America Norte-Sur | D151: 300132 | E151: 2119.5
A152: 39569 | B152: Internet | C152: España | D152: 326929 | E152: 1357.5
A153: 39783 | B153: Directo | C153: Reino Unido | D153: 266317 | E153: 2784
A154: 40299 | B154: Internet | C154: America Norte-Sur | D154: 277483 | E154: 1981.5
A155: 39965 | B155: Agencia | C155: Alemania | D155: 327786 | E155: 2652
A156: 40087 | B156: Hoteles | C156: Resto de Europa | D156: 296475 | E156: 2700
A157: 39814 | B157: Agencia | C157: Paises Nórdicos | D157: 396280 | E157: 517.5
A158: 39995 | B158: Hoteles | C158: Resto de Europa | D158: 286631 | E158: 2068.5
A159: 40269 | B159: Hoteles | C159: Alemania | D159: 308018 | E159: 724.5
A160: 39814 | B160: Agencia | C160: Paises Nórdicos | D160: 352319 | E160: 1449
A161: 40148 | B161: Hoteles | C161: Resto de Europa | D161: 269078 | E161: 774
A162: 40026 | B162: Internet | C162: España | D162: 311359 | E162: 1906.5
A163: 39539 | B163: Agencia | C163: Rusia-Paises del Este | D163: 296874 | E163: 1719
A164: 39722 | B164: Hoteles | C164: Alemania | D164: 276529 | E164: 2631
A165: 39845 | B165: Agencia | C165: Benelux | D165: 306167 | E165: 871.5
A166: 39814 | B166: Directo | C166: Reino Unido | D166: 297139 | E166: 2877
A167: 39479 | B167: Hoteles | C167: Resto de Paises | D167: 256549 | E167: 2388
A168: 39965 | B168: Internet | C168: Italia-Francia | D168: 314699 | E168: 987
A169: 40087 | B169: Internet | C169: America Norte-Sur | D169: 275379 | E169: 1095
A170: 39904 | B170: Hoteles | C170: Resto de Europa | D170: 265875 | E170: 2407.5
A171: 39630 | B171: Internet | C171: España | D171: 305996 | E171: 2089.5
A172: 39692 | B172: Directo | C172: Benelux | D172: 293367 | E172: 1791
A173: 40118 | B173: Hoteles | C173: Resto de Paises | D173: 254892 | E173: 606
A174: 39845 | B174: Directo | C174: Reino Unido | D174: 385975 | E174: 1585.5
A175: 40026 | B175: Internet | C175: Italia-Francia | D175: 298312 | E175: 1840.5
A176: 39630 | B176: Agencia | C176: Rusia-Paises del Este | D176: 292630 | E176: 1708.5
A177: 39845 | B177: Agencia | C177: Paises Nórdicos | D177: 102172 | E177: 532.5
A178: 40057 | B178: Agencia | C178: Benelux | D178: 291465 | E178: 1753.5
A179: 40087 | B179: Hoteles | C179: Alemania | D179: 269983 | E179: 1923
A180: 40148 | B180: Agencia | C180: Rusia-Paises del Este | D180: 271114 | E180: 1122
A181: 39539 | B181: Agencia | C181: America Norte-Sur | D181: 268883 | E181: 1270.5
A182: 40299 | B182: Internet | C182: España | D182: 301343 | E182: 735
A183: 40087 | B183: Hoteles | C183: Resto de Paises | D183: 244667 | E183: 1207.5
A184: 39873 | B184: Hoteles | C184: Paises Nórdicos | D184: 339466 | E184: 883.5
A185: 39873 | B185: Hoteles | C185: Resto de Paises | D185: 241046 | E185: 457.5
A186: 40179 | B186: Hoteles | C186: Benelux | D186: 261382 | E186: 1719
A187: 40299 | B187: Agencia | C187: Italia-Francia | D187: 295264 | E187: 2068.5
A188: 39934 | B188: Agencia | C188: Resto de Europa | D188: 259764 | E188: 2118
A189: 40452 | B189: Agencia | C189: Rusia-Paises del Este | D189: 257216 | E189: 2955
A190: 39873 | B190: Directo | C190: Reino Unido | D190: 376154 | E190: 2863.5
A191: 39753 | B191: Agencia | C191: America Norte-Sur | D191: 267673 | E191: 1993.5
A192: 40330 | B192: Agencia | C192: Italia-Francia | D192: 287183 | E192: 1554
A193: 40210 | B193: Agencia | C193: America Norte-Sur | D193: 249931 | E193: 784.5
A194: 39508 | B194: Internet | C194: España | D194: 284319 | E194: 2907
A195: 40238 | B195: Hoteles | C195: Alemania | D195: 263487 | E195: 529.5
A196: 39539 | B196: Hoteles | C196: Resto de Paises | D196: 231499 | E196: 1321.5
A197: 39539 | B197: Internet | C197: España | D197: 273436 | E197: 2196
A198: 40330 | B198: Agencia | C198: Alemania | D198: 254791 | E198: 441
A199: 40360 | B199: Agencia | C199: Italia-Francia | D199: 275861 | E199: 2061
A200: 39904 | B200: Directo | C200: Reino Unido | D200: 358080 | E200: 1635
... 242 more rows

Sheet Tabla de Datos
A1: Alquiler de Coches Benito SA | K1: Otros Datos
A2: Campos Importados de Nuestro Programa de Gestion | F2: Campos Calculados | K2: Margen Medio de Canales Sobre Facturación
A3: Fecha de Facturacion | B3: Canales | C3: Nacionalidad | D3: Facturación | E3: Nº de Contratos | F3: Margen | G3: Ganancia | H3: Año | I3: Trimestre | K3: Canal | L3: % Ganancia
A4: 39692 | B4: Directo | C4: Italia-Francia | D4: 388356 | E4: 1327.5 | F4: =VLOOKUP(Rtdos_de_la_Empresa8[[#This Row],[Canales]],Tabla39[],2,FALSE) -> 0.4 | G4: =Rtdos_de_la_Empresa8[[#This Row],[Margen]]*Rtdos_de_la_Empresa8[[#This Row],[Facturación]] -> 155342.4 | H4: =YEAR(Rtdos_de_la_Empresa8[[#This Row],[Fecha de Facturacion]]) -> 2008 | I4: =ROUNDUP(MONTH(Rtdos_de_la_Empresa8[[#This Row],[Fecha de Facturacion]])/3, 0) -> 3 | K4: Internet | L4: 0.4
A5: 40118 | B5: Directo | C5: Benelux | D5: 398627 | E5: 387 | F5: =VLOOKUP(Rtdos_de_la_Empresa8[[#This Row],[Canales]],Tabla39[],2,FALSE) -> 0.4 | G5: =Rtdos_de_la_Empresa8[[#This Row],[Margen]]*Rtdos_de_la_Empresa8[[#This Row],[Facturación]] -> 159450.8 | H5: =YEAR(Rtdos_de_la_Empresa8[[#This Row],[Fecha de Facturacion]]) -> 2009 | I5: =ROUNDUP(MONTH(Rtdos_de_la_Empresa8[[#This Row],[Fecha de Facturacion]])/3, 0) -> 4 | K5: Directo | L5: 0.4
A6: 39600 | B6: Internet | C6: Alemania | D6: 398072 | E6: 2947.5 | F6: =VLOOKUP(Rtdos_de_la_Empresa8[[#This Row],[Canales]],Tabla39[],2,FALSE) -> 0.4 | G6: =Rtdos_de_la_Empresa8[[#This Row],[Margen]]*Rtdos_de_la_Empresa8[[#This Row],[Facturación]] -> 159228.8 | H6: =YEAR(Rtdos_de_la_Empresa8[[#This Row],[Fecha de Facturacion]]) -> 2008 | I6: =ROUNDUP(MONTH(Rtdos_de_la_Empresa8[[#This Row],[Fecha de Facturacion]])/3, 0) -> 2 | K6: Agencia | L6: 0.2
A7: 40238 | B7: Directo | C7: America Norte-Sur | D7: 399219 | E7: 1413 | F7: =VLOOKUP(Rtdos_de_la_Empresa8[[#This Row],[Canales]],Tabla39[],2,FALSE) -> 0.4 | G7: =Rtdos_de_la_Empresa8[[#This Row],[Margen]]*Rtdos_de_la_Empresa8[[#This Row],[Facturación]] -> 159687.6 | H7: =YEAR(Rtdos_de_la_Empresa8[[#This Row],[Fecha de Facturacion]]) -> 2010 | I7: =ROUNDUP(MONTH(Rtdos_de_la_Empresa8[[#This Row],[Fecha de Facturacion]])/3, 0) -> 1 | K7: Hoteles | L7: 0.15
A8: 40360 | B8: Directo | C8: España | D8: 399351 | E8: 678 | F8: =VLOOKUP(Rtdos_de_la_Empresa8[[#This Row],[Canales]],Tabla39[],2,FALSE) -> 0.4 | G8: =Rtdos_de_la_Empresa8[[#This Row],[Margen]]*Rtdos_de_la_Empresa8[[#This Row],[Facturación]] -> 159740.4 | H8: =YEAR(Rtdos_de_la_Empresa8[[#This Row],[Fecha de Facturacion]]) -> 2010 | I8: =ROUNDUP(MONTH(Rtdos_de_la_Empresa8[[#This Row],[Fecha de Facturacion]])/3, 0) -> 3
A9: 39845 | B9: Directo | C9: Resto de Europa | D9: 398575 | E9: 543 | F9: =VLOOKUP(Rtdos_de_la_Empresa8[[#This Row],[Canales]],Tabla39[],2,FALSE) -> 0.4 | G9: =Rtdos_de_la_Empresa8[[#This Row],[Margen]]*Rtdos_de_la_Empresa8[[#This Row],[Facturación]] -> 159430 | H9: =YEAR(Rtdos_de_la_Empresa8[[#This Row],[Fecha de Facturacion]]) -> 2009 | I9: =ROUNDUP(MONTH(Rtdos_de_la_Empresa8[[#This Row],[Fecha de Facturacion]])/3, 0) -> 1
A10: 39448 | B10: Internet | C10: Reino Unido | D10: 302173 | E10: 2602.5 | F10: =VLOOKUP(Rtdos_de_la_Empresa8[[#This Row],[Canales]],Tabla39[],2,FALSE) -> 0.4 | G10: =Rtdos_de_la_Empresa8[[#This Row],[Margen]]*Rtdos_de_la_Empresa8[[#This Row],[Facturación]] -> 120869.2 | H10: =YEAR(Rtdos_de_la_Empresa8[[#This Row],[Fecha de Facturacion]]) -> 2008 | I10: =ROUNDUP(MONTH(Rtdos_de_la_Empresa8[[#This Row],[Fecha de Facturacion]])/3, 0) -> 1
A11: 40210 | B11: Directo | C11: Rusia-Paises del Este | D11: 397231 | E11: 1207.5 | F11: =VLOOKUP(Rtdos_de_la_Empresa8[[#This Row],[Canales]],Tabla39[],2,FALSE) -> 0.4 | G11: =Rtdos_de_la_Empresa8[[#This Row],[Margen]]*Rtdos_de_la_Empresa8[[#This Row],[Facturación]] -> 158892.4 | H11: =YEAR(Rtdos_de_la_Empresa8[[#This Row],[Fecha de Facturacion]]) -> 2010 | I11: =ROUNDUP(MONTH(Rtdos_de_la_Empresa8[[#This Row],[Fecha de Facturacion]])/3, 0) -> 1
A12: 39448 | B12: Directo | C12: Paises Nórdicos | D12: 107546 | E12: 979.5 | F12: =VLOOKUP(Rtdos_de_la_Empresa8[[#This Row],[Canales]],Tabla39[],2,FALSE) -> 0.4 | G12: =Rtdos_de_la_Empresa8[[#This Row],[Margen]]*Rtdos_de_la_Empresa8[[#This Row],[Facturación]] -> 43018.4 | H12: =YEAR(Rtdos_de_la_Empresa8[[#This Row],[Fecha de Facturacion]]) -> 2008 | I12: =ROUNDUP(MONTH(Rtdos_de_la_Empresa8[[#This Row],[Fecha de Facturacion]])/3, 0) -> 1
A13: 40269 | B13: Directo | C13: Resto de Paises | D13: 392909 | E13: 2503.5 | F13: =VLOOKUP(Rtdos_de_la_Empresa8[[#This Row],[Canales]],Tabla39[],2,FALSE) -> 0.4 | G13: =Rtdos_de_la_Empresa8[[#This Row],[Margen]]*Rtdos_de_la_Empresa8[[#This Row],[Facturación]] -> 157163.6 | H13: =YEAR(Rtdos_de_la_Empresa8[[#This Row],[Fecha de Facturacion]]) -> 2010 | I13: =ROUNDUP(MONTH(Rtdos_de_la_Empresa8[[#This Row],[Fecha de Facturacion]])/3, 0) -> 2
A14: 39904 | B14: Directo | C14: Italia-Francia | D14: 382188 | E14: 1708.5 | F14: =VLOOKUP(Rtdos_de_la_Empresa8[[#This Row],[Canales]],Tabla39[],2,FALSE) -> 0.4 | G14: =Rtdos_de_la_Empresa8[[#This Row],[Margen]]*Rtdos_de_la_Empresa8[[#This Row],[Facturación]] -> 152875.2 | H14: =YEAR(Rtdos_de_la_Empresa8[[#This Row],[Fecha de Facturacion]]) -> 2009 | I14: =ROUNDUP(MONTH(Rtdos_de_la_Empresa8[[#This Row],[Fecha de Facturacion]])/3, 0) -> 2
A15: 40422 | B15: Directo | C15: America Norte-Sur | D15: 394309 | E15: 2397 | F15: =VLOOKUP(Rtdos_de_la_Empresa8[[#This Row],[Canales]],Tabla39[],2,FALSE) -> 0.4 | G15: =Rtdos_de_la_Empresa8[[#This Row],[Margen]]*Rtdos_de_la_Empresa8[[#This Row],[Facturación]] -> 157723.6 | H15: =YEAR(Rtdos_de_la_Empresa8[[#This Row],[Fecha de Facturacion]]) -> 2010 | I15: =ROUNDUP(MONTH(Rtdos_de_la_Empresa8[[#This Row],[Fecha de Facturacion]])/3, 0) -> 3
A16: 40391 | B16: Directo | C16: España | D16: 391642 | E16: 2092.5 | F16: =VLOOKUP(Rtdos_de_la_Empresa8[[#This Row],[Canales]],Tabla39[],2,FALSE) -> 0.4 | G16: =Rtdos_de_la_Empresa8[[#This Row],[Margen]]*Rtdos_de_la_Empresa8[[#This Row],[Facturación]] -> 156656.8 | H16: =YEAR(Rtdos_de_la_Empresa8[[#This Row],[Fecha de Facturacion]]) -> 2010 | I16: =ROUNDUP(MONTH(Rtdos_de_la_Empresa8[[#This Row],[Fecha de Facturacion]])/3, 0) -> 3
A17: 39814 | B17: Directo | C17: Rusia-Paises del Este | D17: 389284 | E17: 2778 | F17: =VLOOKUP(Rtdos_de_la_Empresa8[[#This Row],[Canales]],Tabla39[],2,FALSE) -> 0.4 | G17: =Rtdos_de_la_Empresa8[[#This Row],[Margen]]*Rtdos_de_la_Empresa8[[#This Row],[Facturación]] -> 155713.6 | H17: =YEAR(Rtdos_de_la_Empresa8[[#This Row],[Fecha de Facturacion]]) -> 2009 | I17: =ROUNDUP(MONTH(Rtdos_de_la_Empresa8[[#This Row],[Fecha de Facturacion]])/3, 0) -> 1
A18: 39814 | B18: Directo | C18: Resto de Europa | D18: 389158 | E18: 562.5 | F18: =VLOOKUP(Rtdos_de_la_Empresa8[[#This Row],[Canales]],Tabla39[],2,FALSE) -> 0.4 | G18: =Rtdos_de_la_Empresa8[[#This Row],[Margen]]*Rtdos_de_la_Empresa8[[#This Row],[Facturación]] -> 155663.2 | H18: =YEAR(Rtdos_de_la_Empresa8[[#This Row],[Fecha de Facturacion]]) -> 2009 | I18: =ROUNDUP(MONTH(Rtdos_de_la_Empresa8[[#This Row],[Fecha de Facturacion]])/3, 0) -> 1
A19: 39600 | B19: Directo | C19: America Norte-Sur | D19: 387124 | E19: 1611 | F19: =VLOOKUP(Rtdos_de_la_Empresa8[[#This Row],[Canales]],Tabla39[],2,FALSE) -> 0.4 | G19: =Rtdos_de_la_Empresa8[[#This Row],[Margen]]*Rtdos_de_la_Empresa8[[#This Row],[Facturación]] -> 154849.6 | H19: =YEAR(Rtdos_de_la_Empresa8[[#This Row],[Fecha de Facturacion]]) -> 2008 | I19: =ROUNDUP(MONTH(Rtdos_de_la_Empresa8[[#This Row],[Fecha de Facturacion]])/3, 0) -> 2
A20: 39479 | B20: Internet | C20: Reino Unido | D20: 357681 | E20: 2506.5 | F20: =VLOOKUP(Rtdos_de_la_Empresa8[[#This Row],[Canales]],Tabla39[],2,FALSE) -> 0.4 | G20: =Rtdos_de_la_Empresa8[[#This Row],[Margen]]*Rtdos_de_la_Empresa8[[#This Row],[Facturación]] -> 143072.4 | H20: =YEAR(Rtdos_de_la_Empresa8[[#This Row],[Fecha de Facturacion]]) -> 2008 | I20: =ROUNDUP(MONTH(Rtdos_de_la_Empresa8[[#This Row],[Fecha de Facturacion]])/3, 0) -> 1
A21: 40360 | B21: Internet | C21: Alemania | D21: 393863 | E21: 874.5 | F21: =VLOOKUP(Rtdos_de_la_Empresa8[[#This Row],[Canales]],Tabla39[],2,FALSE) -> 0.4 | G21: =Rtdos_de_la_Empresa8[[#This Row],[Margen]]*Rtdos_de_la_Empresa8[[#This Row],[Facturación]] -> 157545.2 | H21: =YEAR(Rtdos_de_la_Empresa8[[#This Row],[Fecha de Facturacion]]) -> 2010 | I21: =ROUNDUP(MONTH(Rtdos_de_la_Empresa8[[#This Row],[Fecha de Facturacion]])/3, 0) -> 3
A22: 39722 | B22: Internet | C22: Benelux | D22: 398576 | E22: 2508 | F22: =VLOOKUP(Rtdos_de_la_Empresa8[[#This Row],[Canales]],Tabla39[],2,FALSE) -> 0.4 | G22: =Rtdos_de_la_Empresa8[[#This Row],[Margen]]*Rtdos_de_la_Empresa8[[#This Row],[Facturación]] -> 159430.4 | H22: =YEAR(Rtdos_de_la_Empresa8[[#This Row],[Fecha de Facturacion]]) -> 2008 | I22: =ROUNDUP(MONTH(Rtdos_de_la_Empresa8[[#This Row],[Fecha de Facturacion]])/3, 0) -> 4
A23: 40026 | B23: Directo | C23: Resto de Paises | D23: 388601 | E23: 2548.5 | F23: =VLOOKUP(Rtdos_de_la_Empresa8[[#This Row],[Canales]],Tabla39[],2,FALSE) -> 0.4 | G23: =Rtdos_de_la_Empresa8[[#This Row],[Margen]]*Rtdos_de_la_Empresa8[[#This Row],[Facturación]] -> 155440.4 | H23: =YEAR(Rtdos_de_la_Empresa8[[#This Row],[Fecha de Facturacion]]) -> 2009 | I23: =ROUNDUP(MONTH(Rtdos_de_la_Empresa8[[#This Row],[Fecha de Facturacion]])/3, 0) -> 3
A24: 39845 | B24: Directo | C24: Resto de Paises | D24: 380091 | E24: 1101 | F24: =VLOOKUP(Rtdos_de_la_Empresa8[[#This Row],[Canales]],Tabla39[],2,FALSE) -> 0.4 | G24: =Rtdos_de_la_Empresa8[[#This Row],[Margen]]*Rtdos_de_la_Empresa8[[#This Row],[Facturación]] -> 152036.4 | H24: =YEAR(Rtdos_de_la_Empresa8[[#This Row],[Fecha de Facturacion]]) -> 2009 | I24: =ROUNDUP(MONTH(Rtdos_de_la_Empresa8[[#This Row],[Fecha de Facturacion]])/3, 0) -> 1
A25: 39479 | B25: Directo | C25: Reino Unido | D25: 172529 | E25: 2008.5 | F25: =VLOOKUP(Rtdos_de_la_Empresa8[[#This Row],[Canales]],Tabla39[],2,FALSE) -> 0.4 | G25: =Rtdos_de_la_Empresa8[[#This Row],[Margen]]*Rtdos_de_la_Empresa8[[#This Row],[Facturación]] -> 69011.6 | H25: =YEAR(Rtdos_de_la_Empresa8[[#This Row],[Fecha de Facturacion]]) -> 2008 | I25: =ROUNDUP(MONTH(Rtdos_de_la_Empresa8[[#This Row],[Fecha de Facturacion]])/3, 0) -> 1
A26: 39479 | B26: Directo | C26: Paises Nórdicos | D26: 135697 | E26: 2463 | F26: =VLOOKUP(Rtdos_de_la_Empresa8[[#This Row],[Canales]],Tabla39[],2,FALSE) -> 0.4 | G26: =Rtdos_de_la_Empresa8[[#This Row],[Margen]]*Rtdos_de_la_Empresa8[[#This Row],[Facturación]] -> 54278.8 | H26: =YEAR(Rtdos_de_la_Empresa8[[#This Row],[Fecha de Facturacion]]) -> 2008 | I26: =ROUNDUP(MONTH(Rtdos_de_la_Empresa8[[#This Row],[Fecha de Facturacion]])/3, 0) -> 1
A27: 39539 | B27: Internet | C27: Benelux | D27: 386328 | E27: 2007 | F27: =VLOOKUP(Rtdos_de_la_Empresa8[[#This Row],[Canales]],Tabla39[],2,FALSE) -> 0.4 | G27: =Rtdos_de_la_Empresa8[[#This Row],[Margen]]*Rtdos_de_la_Empresa8[[#This Row],[Facturación]] -> 154531.2 | H27: =YEAR(Rtdos_de_la_Empresa8[[#This Row],[Fecha de Facturacion]]) -> 2008 | I27: =ROUNDUP(MONTH(Rtdos_de_la_Empresa8[[#This Row],[Fecha de Facturacion]])/3, 0) -> 2
A28: 39508 | B28: Directo | C28: Resto de Europa | D28: 381495 | E28: 688.5 | F28: =VLOOKUP(Rtdos_de_la_Empresa8[[#This Row],[Canales]],Tabla39[],2,FALSE) -> 0.4 | G28: =Rtdos_de_la_Empresa8[[#This Row],[Margen]]*Rtdos_de_la_Empresa8[[#This Row],[Facturación]] -> 152598 | H28: =YEAR(Rtdos_de_la_Empresa8[[#This Row],[Fecha de Facturacion]]) -> 2008 | I28: =ROUNDUP(MONTH(Rtdos_de_la_Empresa8[[#This Row],[Fecha de Facturacion]])/3, 0) -> 1
A29: 40330 | B29: Directo | C29: Resto de Europa | D29: 378552 | E29: 1905 | F29: =VLOOKUP(Rtdos_de_la_Empresa8[[#This Row],[Canales]],Tabla39[],2,FALSE) -> 0.4 | G29: =Rtdos_de_la_Empresa8[[#This Row],[Margen]]*Rtdos_de_la_Empresa8[[#This Row],[Facturación]] -> 151420.8 | H29: =YEAR(Rtdos_de_la_Empresa8[[#This Row],[Fecha de Facturacion]]) -> 2010 | I29: =ROUNDUP(MONTH(Rtdos_de_la_Empresa8[[#This Row],[Fecha de Facturacion]])/3, 0) -> 2
A30: 40330 | B30: Directo | C30: America Norte-Sur | D30: 366628 | E30: 781.5 | F30: =VLOOKUP(Rtdos_de_la_Empresa8[[#This Row],[Canales]],Tabla39[],2,FALSE) -> 0.4 | G30: =Rtdos_de_la_Empresa8[[#This Row],[Margen]]*Rtdos_de_la_Empresa8[[#This Row],[Facturación]] -> 146651.2 | H30: =YEAR(Rtdos_de_la_Empresa8[[#This Row],[Fecha de Facturacion]]) -> 2010 | I30: =ROUNDUP(MONTH(Rtdos_de_la_Empresa8[[#This Row],[Fecha de Facturacion]])/3, 0) -> 2
A31: 39508 | B31: Directo | C31: Paises Nórdicos | D31: 245292 | E31: 736.5 | F31: =VLOOKUP(Rtdos_de_la_Empresa8[[#This Row],[Canales]],Tabla39[],2,FALSE) -> 0.4 | G31: =Rtdos_de_la_Empresa8[[#This Row],[Margen]]*Rtdos_de_la_Empresa8[[#This Row],[Facturación]] -> 98116.8 | H31: =YEAR(Rtdos_de_la_Empresa8[[#This Row],[Fecha de Facturacion]]) -> 2008 | I31: =ROUNDUP(MONTH(Rtdos_de_la_Empresa8[[#This Row],[Fecha de Facturacion]])/3, 0) -> 1
A32: 39508 | B32: Directo | C32: Reino Unido | D32: 384673 | E32: 1854 | F32: =VLOOKUP(Rtdos_de_la_Empresa8[[#This Row],[Canales]],Tabla39[],2,FALSE) -> 0.4 | G32: =Rtdos_de_la_Empresa8[[#This Row],[Margen]]*Rtdos_de_la_Empresa8[[#This Row],[Facturación]] -> 153869.2 | H32: =YEAR(Rtdos_de_la_Empresa8[[#This Row],[Fecha de Facturacion]]) -> 2008 | I32: =ROUNDUP(MONTH(Rtdos_de_la_Empresa8[[#This Row],[Fecha de Facturacion]])/3, 0) -> 1
A33: 40026 | B33: Directo | C33: Rusia-Paises del Este | D33: 388434 | E33: 1060.5 | F33: =VLOOKUP(Rtdos_de_la_Empresa8[[#This Row],[Canales]],Tabla39[],2,FALSE) -> 0.4 | G33: =Rtdos_de_la_Empresa8[[#This Row],[Margen]]*Rtdos_de_la_Empresa8[[#This Row],[Facturación]] -> 155373.6 | H33: =YEAR(Rtdos_de_la_Empresa8[[#This Row],[Fecha de Facturacion]]) -> 2009 | I33: =ROUNDUP(MONTH(Rtdos_de_la_Empresa8[[#This Row],[Fecha de Facturacion]])/3, 0) -> 3
A34: 39873 | B34: Directo | C34: Italia-Francia | D34: 378992 | E34: 2506.5 | F34: =VLOOKUP(Rtdos_de_la_Empresa8[[#This Row],[Canales]],Tabla39[],2,FALSE) -> 0.4 | G34: =Rtdos_de_la_Empresa8[[#This Row],[Margen]]*Rtdos_de_la_Empresa8[[#This Row],[Facturación]] -> 151596.8 | H34: =YEAR(Rtdos_de_la_Empresa8[[#This Row],[Fecha de Facturacion]]) -> 2009 | I34: =ROUNDUP(MONTH(Rtdos_de_la_Empresa8[[#This Row],[Fecha de Facturacion]])/3, 0) -> 1
A35: 40269 | B35: Directo | C35: España | D35: 391310 | E35: 1083 | F35: =VLOOKUP(Rtdos_de_la_Empresa8[[#This Row],[Canales]],Tabla39[],2,FALSE) -> 0.4 | G35: =Rtdos_de_la_Empresa8[[#This Row],[Margen]]*Rtdos_de_la_Empresa8[[#This Row],[Facturación]] -> 156524 | H35: =YEAR(Rtdos_de_la_Empresa8[[#This Row],[Fecha de Facturacion]]) -> 2010 | I35: =ROUNDUP(MONTH(Rtdos_de_la_Empresa8[[#This Row],[Fecha de Facturacion]])/3, 0) -> 2
A36: 40210 | B36: Internet | C36: Resto de Paises | D36: 373816 | E36: 1837.5 | F36: =VLOOKUP(Rtdos_de_la_Empresa8[[#This Row],[Canales]],Tabla39[],2,FALSE) -> 0.4 | G36: =Rtdos_de_la_Empresa8[[#This Row],[Margen]]*Rtdos_de_la_Empresa8[[#This Row],[Facturación]] -> 149526.4 | H36: =YEAR(Rtdos_de_la_Empresa8[[#This Row],[Fecha de Facturacion]]) -> 2010 | I36: =ROUNDUP(MONTH(Rtdos_de_la_Empresa8[[#This Row],[Fecha de Facturacion]])/3, 0) -> 1
A37: 40118 | B37: Directo | C37: Alemania | D37: 393239 | E37: 1194 | F37: =VLOOKUP(Rtdos_de_la_Empresa8[[#This Row],[Canales]],Tabla39[],2,FALSE) -> 0.4 | G37: =Rtdos_de_la_Empresa8[[#This Row],[Margen]]*Rtdos_de_la_Empresa8[[#This Row],[Facturación]] -> 157295.6 | H37: =YEAR(Rtdos_de_la_Empresa8[[#This Row],[Fecha de Facturacion]]) -> 2009 | I37: =ROUNDUP(MONTH(Rtdos_de_la_Empresa8[[#This Row],[Fecha de Facturacion]])/3, 0) -> 4
A38: 40210 | B38: Directo | C38: Alemania | D38: 393204 | E38: 2379 | F38: =VLOOKUP(Rtdos_de_la_Empresa8[[#This Row],[Canales]],Tabla39[],2,FALSE) -> 0.4 | G38: =Rtdos_de_la_Empresa8[[#This Row],[Margen]]*Rtdos_de_la_Empresa8[[#This Row],[Facturación]] -> 157281.6 | H38: =YEAR(Rtdos_de_la_Empresa8[[#This Row],[Fecha de Facturacion]]) -> 2010 | I38: =ROUNDUP(MONTH(Rtdos_de_la_Empresa8[[#This Row],[Fecha de Facturacion]])/3, 0) -> 1
A39: 39508 | B39: Directo | C39: Paises Nórdicos | D39: 134965 | E39: 2661 | F39: =VLOOKUP(Rtdos_de_la_Empresa8[[#This Row],[Canales]],Tabla39[],2,FALSE) -> 0.4 | G39: =Rtdos_de_la_Empresa8[[#This Row],[Margen]]*Rtdos_de_la_Empresa8[[#This Row],[Facturación]] -> 53986 | H39: =YEAR(Rtdos_de_la_Empresa8[[#This Row],[Fecha de Facturacion]]) -> 2008 | I39: =ROUNDUP(MONTH(Rtdos_de_la_Empresa8[[#This Row],[Fecha de Facturacion]])/3, 0) -> 1
A40: 39783 | B40: Directo | C40: Rusia-Paises del Este | D40: 384646 | E40: 2584.5 | F40: =VLOOKUP(Rtdos_de_la_Empresa8[[#This Row],[Canales]],Tabla39[],2,FALSE) -> 0.4 | G40: =Rtdos_de_la_Empresa8[[#This Row],[Margen]]*Rtdos_de_la_Empresa8[[#This Row],[Facturación]] -> 153858.4 | H40: =YEAR(Rtdos_de_la_Empresa8[[#This Row],[Fecha de Facturacion]]) -> 2008 | I40: =ROUNDUP(MONTH(Rtdos_de_la_Empresa8[[#This Row],[Fecha de Facturacion]])/3, 0) -> 4
A41: 39722 | B41: Directo | C41: Resto de Europa | D41: 375581 | E41: 2913 | F41: =VLOOKUP(Rtdos_de_la_Empresa8[[#This Row],[Canales]],Tabla39[],2,FALSE) -> 0.4 | G41: =Rtdos_de_la_Empresa8[[#This Row],[Margen]]*Rtdos_de_la_Empresa8[[#This Row],[Facturación]] -> 150232.4 | H41: =YEAR(Rtdos_de_la_Empresa8[[#This Row],[Fecha de Facturacion]]) -> 2008 | I41: =ROUNDUP(MONTH(Rtdos_de_la_Empresa8[[#This Row],[Fecha de Facturacion]])/3, 0) -> 4
A42: 39539 | B42: Directo | C42: Reino Unido | D42: 291496 | E42: 1203 | F42: =VLOOKUP(Rtdos_de_la_Empresa8[[#This Row],[Canales]],Tabla39[],2,FALSE) -> 0.4 | G42: =Rtdos_de_la_Empresa8[[#This Row],[Margen]]*Rtdos_de_la_Empresa8[[#This Row],[Facturación]] -> 116598.4 | H42: =YEAR(Rtdos_de_la_Empresa8[[#This Row],[Fecha de Facturacion]]) -> 2008 | I42: =ROUNDUP(MONTH(Rtdos_de_la_Empresa8[[#This Row],[Fecha de Facturacion]])/3, 0) -> 2
A43: 40391 | B43: Directo | C43: America Norte-Sur | D43: 358566 | E43: 1992 | F43: =VLOOKUP(Rtdos_de_la_Empresa8[[#This Row],[Canales]],Tabla39[],2,FALSE) -> 0.4 | G43: =Rtdos_de_la_Empresa8[[#This Row],[Margen]]*Rtdos_de_la_Empresa8[[#This Row],[Facturación]] -> 143426.4 | H43: =YEAR(Rtdos_de_la_Empresa8[[#This Row],[Fecha de Facturacion]]) -> 2010 | I43: =ROUNDUP(MONTH(Rtdos_de_la_Empresa8[[#This Row],[Fecha de Facturacion]])/3, 0) -> 3
A44: 39722 | B44: Internet | C44: Benelux | D44: 385744 | E44: 2511 | F44: =VLOOKUP(Rtdos_de_la_Empresa8[[#This Row],[Canales]],Tabla39[],2,FALSE) -> 0.4 | G44: =Rtdos_de_la_Empresa8[[#This Row],[Margen]]*Rtdos_de_la_Empresa8[[#This Row],[Facturación]] -> 154297.6 | H44: =YEAR(Rtdos_de_la_Empresa8[[#This Row],[Fecha de Facturacion]]) -> 2008 | I44: =ROUNDUP(MONTH(Rtdos_de_la_Empresa8[[#This Row],[Fecha de Facturacion]])/3, 0) -> 4
A45: 39539 | B45: Directo | C45: Paises Nórdicos | D45: 280609 | E45: 1531.5 | F45: =VLOOKUP(Rtdos_de_la_Empresa8[[#This Row],[Canales]],Tabla39[],2,FALSE) -> 0.4 | G45: =Rtdos_de_la_Empresa8[[#This Row],[Margen]]*Rtdos_de_la_Empresa8[[#This Row],[Facturación]] -> 112243.6 | H45: =YEAR(Rtdos_de_la_Empresa8[[#This Row],[Fecha de Facturacion]]) -> 2008 | I45: =ROUNDUP(MONTH(Rtdos_de_la_Empresa8[[#This Row],[Fecha de Facturacion]])/3, 0) -> 2
A46: 40360 | B46: Internet | C46: Resto de Paises | D46: 366443 | E46: 852 | F46: =VLOOKUP(Rtdos_de_la_Empresa8[[#This Row],[Canales]],Tabla39[],2,FALSE) -> 0.4 | G46: =Rtdos_de_la_Empresa8[[#This Row],[Margen]]*Rtdos_de_la_Empresa8[[#This Row],[Facturación]] -> 146577.2 | H46: =YEAR(Rtdos_de_la_Empresa8[[#This Row],[Fecha de Facturacion]]) -> 2010 | I46: =ROUNDUP(MONTH(Rtdos_de_la_Empresa8[[#This Row],[Fecha de Facturacion]])/3, 0) -> 3
A47: 39661 | B47: Directo | C47: Rusia-Paises del Este | D47: 384590 | E47: 2023.5 | F47: =VLOOKUP(Rtdos_de_la_Empresa8[[#This Row],[Canales]],Tabla39[],2,FALSE) -> 0.4 | G47: =Rtdos_de_la_Empresa8[[#This Row],[Margen]]*Rtdos_de_la_Empresa8[[#This Row],[Facturación]] -> 153836 | H47: =YEAR(Rtdos_de_la_Empresa8[[#This Row],[Fecha de Facturacion]]) -> 2008 | I47: =ROUNDUP(MONTH(Rtdos_de_la_Empresa8[[#This Row],[Fecha de Facturacion]])/3, 0) -> 3
A48: 40238 | B48: Directo | C48: España | D48: 379772 | E48: 2062.5 | F48: =VLOOKUP(Rtdos_de_la_Empresa8[[#This Row],[Canales]],Tabla39[],2,FALSE) -> 0.4 | G48: =Rtdos_de_la_Empresa8[[#This Row],[Margen]]*Rtdos_de_la_Empresa8[[#This Row],[Facturación]] -> 151908.8 | H48: =YEAR(Rtdos_de_la_Empresa8[[#This Row],[Fecha de Facturacion]]) -> 2010 | I48: =ROUNDUP(MONTH(Rtdos_de_la_Empresa8[[#This Row],[Fecha de Facturacion]])/3, 0) -> 1
A49: 39600 | B49: Internet | C49: Italia-Francia | D49: 378350 | E49: 2613 | F49: =VLOOKUP(Rtdos_de_la_Empresa8[[#This Row],[Canales]],Tabla39[],2,FALSE) -> 0.4 | G49: =Rtdos_de_la_Empresa8[[#This Row],[Margen]]*Rtdos_de_la_Empresa8[[#This Row],[Facturación]] -> 151340 | H49: =YEAR(Rtdos_de_la_Empresa8[[#This Row],[Fecha de Facturacion]]) -> 2008 | I49: =ROUNDUP(MONTH(Rtdos_de_la_Empresa8[[#This Row],[Fecha de Facturacion]])/3, 0) -> 2
A50: 39965 | B50: Internet | C50: Benelux | D50: 382786 | E50: 763.5 | F50: =VLOOKUP(Rtdos_de_la_Empresa8[[#This Row],[Canales]],Tabla39[],2,FALSE) -> 0.4 | G50: =Rtdos_de_la_Empresa8[[#This Row],[Margen]]*Rtdos_de_la_Empresa8[[#This Row],[Facturación]] -> 153114.4 | H50: =YEAR(Rtdos_de_la_Empresa8[[#This Row],[Fecha de Facturacion]]) -> 2009 | I50: =ROUNDUP(MONTH(Rtdos_de_la_Empresa8[[#This Row],[Fecha de Facturacion]])/3, 0) -> 2
A51: 40179 | B51: Internet | C51: España | D51: 370703 | E51: 2952 | F51: =VLOOKUP(Rtdos_de_la_Empresa8[[#This Row],[Canales]],Tabla39[],2,FALSE) -> 0.4 | G51: =Rtdos_de_la_Empresa8[[#This Row],[Margen]]*Rtdos_de_la_Empresa8[[#This Row],[Facturación]] -> 148281.2 | H51: =YEAR(Rtdos_de_la_Empresa8[[#This Row],[Fecha de Facturacion]]) -> 2010 | I51: =ROUNDUP(MONTH(Rtdos_de_la_Empresa8[[#This Row],[Fecha de Facturacion]])/3, 0) -> 1
A52: 40026 | B52: Directo | C52: Alemania | D52: 393041 | E52: 511.5 | F52: =VLOOKUP(Rtdos_de_la_Empresa8[[#This Row],[Canales]],Tabla39[],2,FALSE) -> 0.4 | G52: =Rtdos_de_la_Empresa8[[#This Row],[Margen]]*Rtdos_de_la_Empresa8[[#This Row],[Facturación]] -> 157216.4 | H52: =YEAR(Rtdos_de_la_Empresa8[[#This Row],[Fecha de Facturacion]]) -> 2009 | I52: =ROUNDUP(MONTH(Rtdos_de_la_Empresa8[[#This Row],[Fecha de Facturacion]])/3, 0) -> 3
A53: 39569 | B53: Internet | C53: Resto de Paises | D53: 366156 | E53: 735 | F53: =VLOOKUP(Rtdos_de_la_Empresa8[[#This Row],[Canales]],Tabla39[],2,FALSE) -> 0.4 | G53: =Rtdos_de_la_Empresa8[[#This Row],[Margen]]*Rtdos_de_la_Empresa8[[#This Row],[Facturación]] -> 146462.4 | H53: =YEAR(Rtdos_de_la_Empresa8[[#This Row],[Fecha de Facturacion]]) -> 2008 | I53: =ROUNDUP(MONTH(Rtdos_de_la_Empresa8[[#This Row],[Fecha de Facturacion]])/3, 0) -> 2
A54: 39569 | B54: Directo | C54: Paises Nórdicos | D54: 255782 | E54: 705 | F54: =VLOOKUP(Rtdos_de_la_Empresa8[[#This Row],[Canales]],Tabla39[],2,FALSE) -> 0.4 | G54: =Rtdos_de_la_Empresa8[[#This Row],[Margen]]*Rtdos_de_la_Empresa8[[#This Row],[Facturación]] -> 102312.8 | H54: =YEAR(Rtdos_de_la_Empresa8[[#This Row],[Fecha de Facturacion]]) -> 2008 | I54: =ROUNDUP(MONTH(Rtdos_de_la_Empresa8[[#This Row],[Fecha de Facturacion]])/3, 0) -> 2
A55: 40148 | B55: Internet | C55: España | D55: 369464 | E55: 2889 | F55: =VLOOKUP(Rtdos_de_la_Empresa8[[#This Row],[Canales]],Tabla39[],2,FALSE) -> 0.4 | G55: =Rtdos_de_la_Empresa8[[#This Row],[Margen]]*Rtdos_de_la_Empresa8[[#This Row],[Facturación]] -> 147785.6 | H55: =YEAR(Rtdos_de_la_Empresa8[[#This Row],[Fecha de Facturacion]]) -> 2009 | I55: =ROUNDUP(MONTH(Rtdos_de_la_Empresa8[[#This Row],[Fecha de Facturacion]])/3, 0) -> 4
A56: 40269 | B56: Internet | C56: Italia-Francia | D56: 375923 | E56: 507 | F56: =VLOOKUP(Rtdos_de_la_Empresa8[[#This Row],[Canales]],Tabla39[],2,FALSE) -> 0.4 | G56: =Rtdos_de_la_Empresa8[[#This Row],[Margen]]*Rtdos_de_la_Empresa8[[#This Row],[Facturación]] -> 150369.2 | H56: =YEAR(Rtdos_de_la_Empresa8[[#This Row],[Fecha de Facturacion]]) -> 2010 | I56: =ROUNDUP(MONTH(Rtdos_de_la_Empresa8[[#This Row],[Fecha de Facturacion]])/3, 0) -> 2
A57: 40057 | B57: Internet | C57: Italia-Francia | D57: 366502 | E57: 2508 | F57: =VLOOKUP(Rtdos_de_la_Empresa8[[#This Row],[Canales]],Tabla39[],2,FALSE) -> 0.4 | G57: =Rtdos_de_la_Empresa8[[#This Row],[Margen]]*Rtdos_de_la_Empresa8[[#This Row],[Facturación]] -> 146600.8 | H57: =YEAR(Rtdos_de_la_Empresa8[[#This Row],[Fecha de Facturacion]]) -> 2009 | I57: =ROUNDUP(MONTH(Rtdos_de_la_Empresa8[[#This Row],[Fecha de Facturacion]])/3, 0) -> 3
A58: 39934 | B58: Directo | C58: Alemania | D58: 384066 | E58: 1003.5 | F58: =VLOOKUP(Rtdos_de_la_Empresa8[[#This Row],[Canales]],Tabla39[],2,FALSE) -> 0.4 | G58: =Rtdos_de_la_Empresa8[[#This Row],[Margen]]*Rtdos_de_la_Empresa8[[#This Row],[Facturación]] -> 153626.4 | H58: =YEAR(Rtdos_de_la_Empresa8[[#This Row],[Fecha de Facturacion]]) -> 2009 | I58: =ROUNDUP(MONTH(Rtdos_de_la_Empresa8[[#This Row],[Fecha de Facturacion]])/3, 0) -> 2
A59: 39479 | B59: Directo | C59: America Norte-Sur | D59: 356679 | E59: 1672.5 | F59: =VLOOKUP(Rtdos_de_la_Empresa8[[#This Row],[Canales]],Tabla39[],2,FALSE) -> 0.4 | G59: =Rtdos_de_la_Empresa8[[#This Row],[Margen]]*Rtdos_de_la_Empresa8[[#This Row],[Facturación]] -> 142671.6 | H59: =YEAR(Rtdos_de_la_Empresa8[[#This Row],[Fecha de Facturacion]]) -> 2008 | I59: =ROUNDUP(MONTH(Rtdos_de_la_Empresa8[[#This Row],[Fecha de Facturacion]])/3, 0) -> 1
A60: 39995 | B60: Directo | C60: America Norte-Sur | D60: 349104 | E60: 1963.5 | F60: =VLOOKUP(Rtdos_de_la_Empresa8[[#This Row],[Canales]],Tabla39[],2,FALSE) -> 0.4 | G60: =Rtdos_de_la_Empresa8[[#This Row],[Margen]]*Rtdos_de_la_Empresa8[[#This Row],[Facturación]] -> 139641.6 | H60: =YEAR(Rtdos_de_la_Empresa8[[#This Row],[Fecha de Facturacion]]) -> 2009 | I60: =ROUNDUP(MONTH(Rtdos_de_la_Empresa8[[#This Row],[Fecha de Facturacion]])/3, 0) -> 3
A61: 40026 | B61: Directo | C61: Benelux | D61: 382683 | E61: 2278.5 | F61: =VLOOKUP(Rtdos_de_la_Empresa8[[#This Row],[Canales]],Tabla39[],2,FALSE) -> 0.4 | G61: =Rtdos_de_la_Empresa8[[#This Row],[Margen]]*Rtdos_de_la_Empresa8[[#This Row],[Facturación]] -> 153073.2 | H61: =YEAR(Rtdos_de_la_Empresa8[[#This Row],[Fecha de Facturacion]]) -> 2009 | I61: =ROUNDUP(MONTH(Rtdos_de_la_Empresa8[[#This Row],[Fecha de Facturacion]])/3, 0) -> 3
A62: 40299 | B62: Directo | C62: Resto de Europa | D62: 369353 | E62: 2293.5 | F62: =VLOOKUP(Rtdos_de_la_Empresa8[[#This Row],[Canales]],Tabla39[],2,FALSE) -> 0.4 | G62: =Rtdos_de_la_Empresa8[[#This Row],[Margen]]*Rtdos_de_la_Empresa8[[#This Row],[Facturación]] -> 147741.2 | H62: =YEAR(Rtdos_de_la_Empresa8[[#This Row],[Fecha de Facturacion]]) -> 2010 | I62: =ROUNDUP(MONTH(Rtdos_de_la_Empresa8[[#This Row],[Fecha de Facturacion]])/3, 0) -> 2
A63: 40238 | B63: Internet | C63: Resto de Paises | D63: 349304 | E63: 439.5 | F63: =VLOOKUP(Rtdos_de_la_Empresa8[[#This Row],[Canales]],Tabla39[],2,FALSE) -> 0.4 | G63: =Rtdos_de_la_Empresa8[[#This Row],[Margen]]*Rtdos_de_la_Empresa8[[#This Row],[Facturación]] -> 139721.6 | H63: =YEAR(Rtdos_de_la_Empresa8[[#This Row],[Fecha de Facturacion]]) -> 2010 | I63: =ROUNDUP(MONTH(Rtdos_de_la_Empresa8[[#This Row],[Fecha de Facturacion]])/3, 0) -> 1
A64: 39569 | B64: Directo | C64: Reino Unido | D64: 133335 | E64: 2031 | F64: =VLOOKUP(Rtdos_de_la_Empresa8[[#This Row],[Canales]],Tabla39[],2,FALSE) -> 0.4 | G64: =Rtdos_de_la_Empresa8[[#This Row],[Margen]]*Rtdos_de_la_Empresa8[[#This Row],[Facturación]] -> 53334 | H64: =YEAR(Rtdos_de_la_Empresa8[[#This Row],[Fecha de Facturacion]]) -> 2008 | I64: =ROUNDUP(MONTH(Rtdos_de_la_Empresa8[[#This Row],[Fecha de Facturacion]])/3, 0) -> 2
A65: 40179 | B65: Internet | C65: Rusia-Paises del Este | D65: 376174 | E65: 1810.5 | F65: =VLOOKUP(Rtdos_de_la_Empresa8[[#This Row],[Canales]],Tabla39[],2,FALSE) -> 0.4 | G65: =Rtdos_de_la_Empresa8[[#This Row],[Margen]]*Rtdos_de_la_Empresa8[[#This Row],[Facturación]] -> 150469.6 | H65: =YEAR(Rtdos_de_la_Empresa8[[#This Row],[Fecha de Facturacion]]) -> 2010 | I65: =ROUNDUP(MONTH(Rtdos_de_la_Empresa8[[#This Row],[Fecha de Facturacion]])/3, 0) -> 1
A66: 39600 | B66: Directo | C66: Resto de Europa | D66: 357917 | E66: 1305 | F66: =VLOOKUP(Rtdos_de_la_Empresa8[[#This Row],[Canales]],Tabla39[],2,FALSE) -> 0.4 | G66: =Rtdos_de_la_Empresa8[[#This Row],[Margen]]*Rtdos_de_la_Empresa8[[#This Row],[Facturación]] -> 143166.8 | H66: =YEAR(Rtdos_de_la_Empresa8[[#This Row],[Fecha de Facturacion]]) -> 2008 | I66: =ROUNDUP(MONTH(Rtdos_de_la_Empresa8[[#This Row],[Fecha de Facturacion]])/3, 0) -> 2
A67: 40179 | B67: Directo | C67: America Norte-Sur | D67: 346430 | E67: 2922 | F67: =VLOOKUP(Rtdos_de_la_Empresa8[[#This Row],[Canales]],Tabla39[],2,FALSE) -> 0.4 | G67: =Rtdos_de_la_Empresa8[[#This Row],[Margen]]*Rtdos_de_la_Empresa8[[#This Row],[Facturación]] -> 138572 | H67: =YEAR(Rtdos_de_la_Empresa8[[#This Row],[Fecha de Facturacion]]) -> 2010 | I67: =ROUNDUP(MONTH(Rtdos_de_la_Empresa8[[#This Row],[Fecha de Facturacion]])/3, 0) -> 1
A68: 39600 | B68: Directo | C68: Reino Unido | D68: 362465 | E68: 1519.5 | F68: =VLOOKUP(Rtdos_de_la_Empresa8[[#This Row],[Canales]],Tabla39[],2,FALSE) -> 0.4 | G68: =Rtdos_de_la_Empresa8[[#This Row],[Margen]]*Rtdos_de_la_Empresa8[[#This Row],[Facturación]] -> 144986 | H68: =YEAR(Rtdos_de_la_Empresa8[[#This Row],[Fecha de Facturacion]]) -> 2008 | I68: =ROUNDUP(MONTH(Rtdos_de_la_Empresa8[[#This Row],[Fecha de Facturacion]])/3, 0) -> 2
A69: 39600 | B69: Directo | C69: Paises Nórdicos | D69: 367549 | E69: 2220 | F69: =VLOOKUP(Rtdos_de_la_Empresa8[[#This Row],[Canales]],Tabla39[],2,FALSE) -> 0.4 | G69: =Rtdos_de_la_Empresa8[[#This Row],[Margen]]*Rtdos_de_la_Empresa8[[#This Row],[Facturación]] -> 147019.6 | H69: =YEAR(Rtdos_de_la_Empresa8[[#This Row],[Fecha de Facturacion]]) -> 2008 | I69: =ROUNDUP(MONTH(Rtdos_de_la_Empresa8[[#This Row],[Fecha de Facturacion]])/3, 0) -> 2
A70: 39600 | B70: Directo | C70: Benelux | D70: 382655 | E70: 2392.5 | F70: =VLOOKUP(Rtdos_de_la_Empresa8[[#This Row],[Canales]],Tabla39[],2,FALSE) -> 0.4 | G70: =Rtdos_de_la_Empresa8[[#This Row],[Margen]]*Rtdos_de_la_Empresa8[[#This Row],[Facturación]] -> 153062 | H70: =YEAR(Rtdos_de_la_Empresa8[[#This Row],[Fecha de Facturacion]]) -> 2008 | I70: =ROUNDUP(MONTH(Rtdos_de_la_Empresa8[[#This Row],[Fecha de Facturacion]])/3, 0) -> 2
A71: 39448 | B71: Internet | C71: Italia-Francia | D71: 363821 | E71: 460.5 | F71: =VLOOKUP(Rtdos_de_la_Empresa8[[#This Row],[Canales]],Tabla39[],2,FALSE) -> 0.4 | G71: =Rtdos_de_la_Empresa8[[#This Row],[Margen]]*Rtdos_de_la_Empresa8[[#This Row],[Facturación]] -> 145528.4 | H71: =YEAR(Rtdos_de_la_Empresa8[[#This Row],[Fecha de Facturacion]]) -> 2008 | I71: =ROUNDUP(MONTH(Rtdos_de_la_Empresa8[[#This Row],[Fecha de Facturacion]])/3, 0) -> 1
A72: 40148 | B72: Directo | C72: Alemania | D72: 382590 | E72: 607.5 | F72: =VLOOKUP(Rtdos_de_la_Empresa8[[#This Row],[Canales]],Tabla39[],2,FALSE) -> 0.4 | G72: =Rtdos_de_la_Empresa8[[#This Row],[Margen]]*Rtdos_de_la_Empresa8[[#This Row],[Facturación]] -> 153036 | H72: =YEAR(Rtdos_de_la_Empresa8[[#This Row],[Fecha de Facturacion]]) -> 2009 | I72: =ROUNDUP(MONTH(Rtdos_de_la_Empresa8[[#This Row],[Fecha de Facturacion]])/3, 0) -> 4
A73: 39630 | B73: Agencia | C73: Resto de Paises | D73: 336077 | E73: 1107 | F73: =VLOOKUP(Rtdos_de_la_Empresa8[[#This Row],[Canales]],Tabla39[],2,FALSE) -> 0.2 | G73: =Rtdos_de_la_Empresa8[[#This Row],[Margen]]*Rtdos_de_la_Empresa8[[#This Row],[Facturación]] -> 67215.4 | H73: =YEAR(Rtdos_de_la_Empresa8[[#This Row],[Fecha de Facturacion]]) -> 2008 | I73: =ROUNDUP(MONTH(Rtdos_de_la_Empresa8[[#This Row],[Fecha de Facturacion]])/3, 0) -> 3
A74: 39600 | B74: Directo | C74: Reino Unido | D74: 230068 | E74: 2170.5 | F74: =VLOOKUP(Rtdos_de_la_Empresa8[[#This Row],[Canales]],Tabla39[],2,FALSE) -> 0.4 | G74: =Rtdos_de_la_Empresa8[[#This Row],[Margen]]*Rtdos_de_la_Empresa8[[#This Row],[Facturación]] -> 92027.2 | H74: =YEAR(Rtdos_de_la_Empresa8[[#This Row],[Fecha de Facturacion]]) -> 2008 | I74: =ROUNDUP(MONTH(Rtdos_de_la_Empresa8[[#This Row],[Fecha de Facturacion]])/3, 0) -> 2
A75: 39600 | B75: Internet | C75: Paises Nórdicos | D75: 171282 | E75: 1701 | F75: =VLOOKUP(Rtdos_de_la_Empresa8[[#This Row],[Canales]],Tabla39[],2,FALSE) -> 0.4 | G75: =Rtdos_de_la_Empresa8[[#This Row],[Margen]]*Rtdos_de_la_Empresa8[[#This Row],[Facturación]] -> 68512.8 | H75: =YEAR(Rtdos_de_la_Empresa8[[#This Row],[Fecha de Facturacion]]) -> 2008 | I75: =ROUNDUP(MONTH(Rtdos_de_la_Empresa8[[#This Row],[Fecha de Facturacion]])/3, 0) -> 2
A76: 39448 | B76: Internet | C76: España | D76: 361435 | E76: 1675.5 | F76: =VLOOKUP(Rtdos_de_la_Empresa8[[#This Row],[Canales]],Tabla39[],2,FALSE) -> 0.4 | G76: =Rtdos_de_la_Empresa8[[#This Row],[Margen]]*Rtdos_de_la_Empresa8[[#This Row],[Facturación]] -> 144574 | H76: =YEAR(Rtdos_de_la_Empresa8[[#This Row],[Fecha de Facturacion]]) -> 2008 | I76: =ROUNDUP(MONTH(Rtdos_de_la_Empresa8[[#This Row],[Fecha de Facturacion]])/3, 0) -> 1
A77: 39965 | B77: Internet | C77: Rusia-Paises del Este | D77: 358244 | E77: 2380.5 | F77: =VLOOKUP(Rtdos_de_la_Empresa8[[#This Row],[Canales]],Tabla39[],2,FALSE) -> 0.4 | G77: =Rtdos_de_la_Empresa8[[#This Row],[Margen]]*Rtdos_de_la_Empresa8[[#This Row],[Facturación]] -> 143297.6 | H77: =YEAR(Rtdos_de_la_Empresa8[[#This Row],[Fecha de Facturacion]]) -> 2009 | I77: =ROUNDUP(MONTH(Rtdos_de_la_Empresa8[[#This Row],[Fecha de Facturacion]])/3, 0) -> 2
A78: 39508 | B78: Internet | C78: Resto de Europa | D78: 347187 | E78: 592.5 | F78: =VLOOKUP(Rtdos_de_la_Empresa8[[#This Row],[Canales]],Tabla39[],2,FALSE) -> 0.4 | G78: =Rtdos_de_la_Empresa8[[#This Row],[Margen]]*Rtdos_de_la_Empresa8[[#This Row],[Facturación]] -> 138874.8 | H78: =YEAR(Rtdos_de_la_Empresa8[[#This Row],[Fecha de Facturacion]]) -> 2008 | I78: =ROUNDUP(MONTH(Rtdos_de_la_Empresa8[[#This Row],[Fecha de Facturacion]])/3, 0) -> 1
A79: 39845 | B79: Directo | C79: Benelux | D79: 375123 | E79: 2395.5 | F79: =VLOOKUP(Rtdos_de_la_Empresa8[[#This Row],[Canales]],Tabla39[],2,FALSE) -> 0.4 | G79: =Rtdos_de_la_Empresa8[[#This Row],[Margen]]*Rtdos_de_la_Empresa8[[#This Row],[Facturación]] -> 150049.2 | H79: =YEAR(Rtdos_de_la_Empresa8[[#This Row],[Fecha de Facturacion]]) -> 2009 | I79: =ROUNDUP(MONTH(Rtdos_de_la_Empresa8[[#This Row],[Fecha de Facturacion]])/3, 0) -> 1
A80: 39479 | B80: Agencia | C80: Resto de Paises | D80: 321987 | E80: 2893.5 | F80: =VLOOKUP(Rtdos_de_la_Empresa8[[#This Row],[Canales]],Tabla39[],2,FALSE) -> 0.2 | G80: =Rtdos_de_la_Empresa8[[#This Row],[Margen]]*Rtdos_de_la_Empresa8[[#This Row],[Facturación]] -> 64397.4 | H80: =YEAR(Rtdos_de_la_Empresa8[[#This Row],[Fecha de Facturacion]]) -> 2008 | I80: =ROUNDUP(MONTH(Rtdos_de_la_Empresa8[[#This Row],[Fecha de Facturacion]])/3, 0) -> 1
A81: 39965 | B81: Directo | C81: America Norte-Sur | D81: 341679 | E81: 582 | F81: =VLOOKUP(Rtdos_de_la_Empresa8[[#This Row],[Canales]],Tabla39[],2,FALSE) -> 0.4 | G81: =Rtdos_de_la_Empresa8[[#This Row],[Margen]]*Rtdos_de_la_Empresa8[[#This Row],[Facturación]] -> 136671.6 | H81: =YEAR(Rtdos_de_la_Empresa8[[#This Row],[Fecha de Facturacion]]) -> 2009 | I81: =ROUNDUP(MONTH(Rtdos_de_la_Empresa8[[#This Row],[Fecha de Facturacion]])/3, 0) -> 2
A82: 40330 | B82: Directo | C82: Benelux | D82: 373855 | E82: 1057.5 | F82: =VLOOKUP(Rtdos_de_la_Empresa8[[#This Row],[Canales]],Tabla39[],2,FALSE) -> 0.4 | G82: =Rtdos_de_la_Empresa8[[#This Row],[Margen]]*Rtdos_de_la_Empresa8[[#This Row],[Facturación]] -> 149542 | H82: =YEAR(Rtdos_de_la_Empresa8[[#This Row],[Fecha de Facturacion]]) -> 2010 | I82: =ROUNDUP(MONTH(Rtdos_de_la_Empresa8[[#This Row],[Fecha de Facturacion]])/3, 0) -> 2
A83: 39630 | B83: Internet | C83: Paises Nórdicos | D83: 243141 | E83: 1086 | F83: =VLOOKUP(Rtdos_de_la_Empresa8[[#This Row],[Canales]],Tabla39[],2,FALSE) -> 0.4 | G83: =Rtdos_de_la_Empresa8[[#This Row],[Margen]]*Rtdos_de_la_Empresa8[[#This Row],[Facturación]] -> 97256.4 | H83: =YEAR(Rtdos_de_la_Empresa8[[#This Row],[Fecha de Facturacion]]) -> 2008 | I83: =ROUNDUP(MONTH(Rtdos_de_la_Empresa8[[#This Row],[Fecha de Facturacion]])/3, 0) -> 3
A84: 40057 | B84: Internet | C84: Italia-Francia | D84: 356366 | E84: 2133 | F84: =VLOOKUP(Rtdos_de_la_Empresa8[[#This Row],[Canales]],Tabla39[],2,FALSE) -> 0.4 | G84: =Rtdos_de_la_Empresa8[[#This Row],[Margen]]*Rtdos_de_la_Empresa8[[#This Row],[Facturación]] -> 142546.4 | H84: =YEAR(Rtdos_de_la_Empresa8[[#This Row],[Fecha de Facturacion]]) -> 2009 | I84: =ROUNDUP(MONTH(Rtdos_de_la_Empresa8[[#This Row],[Fecha de Facturacion]])/3, 0) -> 3
A85: 39661 | B85: Internet | C85: Rusia-Paises del Este | D85: 353624 | E85: 2418 | F85: =VLOOKUP(Rtdos_de_la_Empresa8[[#This Row],[Canales]],Tabla39[],2,FALSE) -> 0.4 | G85: =Rtdos_de_la_Empresa8[[#This Row],[Margen]]*Rtdos_de_la_Empresa8[[#This Row],[Facturación]] -> 141449.6 | H85: =YEAR(Rtdos_de_la_Empresa8[[#This Row],[Fecha de Facturacion]]) -> 2008 | I85: =ROUNDUP(MONTH(Rtdos_de_la_Empresa8[[#This Row],[Fecha de Facturacion]])/3, 0) -> 3
A86: 39692 | B86: Internet | C86: España | D86: 356644 | E86: 603 | F86: =VLOOKUP(Rtdos_de_la_Empresa8[[#This Row],[Canales]],Tabla39[],2,FALSE) -> 0.4 | G86: =Rtdos_de_la_Empresa8[[#This Row],[Margen]]*Rtdos_de_la_Empresa8[[#This Row],[Facturación]] -> 142657.6 | H86: =YEAR(Rtdos_de_la_Empresa8[[#This Row],[Fecha de Facturacion]]) -> 2008 | I86: =ROUNDUP(MONTH(Rtdos_de_la_Empresa8[[#This Row],[Fecha de Facturacion]])/3, 0) -> 3
A87: 39753 | B87: Directo | C87: Alemania | D87: 367795 | E87: 1363.5 | F87: =VLOOKUP(Rtdos_de_la_Empresa8[[#This Row],[Canales]],Tabla39[],2,FALSE) -> 0.4 | G87: =Rtdos_de_la_Empresa8[[#This Row],[Margen]]*Rtdos_de_la_Empresa8[[#This Row],[Facturación]] -> 147118 | H87: =YEAR(Rtdos_de_la_Empresa8[[#This Row],[Fecha de Facturacion]]) -> 2008 | I87: =ROUNDUP(MONTH(Rtdos_de_la_Empresa8[[#This Row],[Fecha de Facturacion]])/3, 0) -> 4
A88: 40269 | B88: Internet | C88: Resto de Europa | D88: 343393 | E88: 2065.5 | F88: =VLOOKUP(Rtdos_de_la_Empresa8[[#This Row],[Canales]],Tabla39[],2,FALSE) -> 0.4 | G88: =Rtdos_de_la_Empresa8[[#This Row],[Margen]]*Rtdos_de_la_Empresa8[[#This Row],[Facturación]] -> 137357.2 | H88: =YEAR(Rtdos_de_la_Empresa8[[#This Row],[Fecha de Facturacion]]) -> 2010 | I88: =ROUNDUP(MONTH(Rtdos_de_la_Empresa8[[#This Row],[Fecha de Facturacion]])/3, 0) -> 2
A89: 39630 | B89: Directo | C89: Reino Unido | D89: 290066 | E89: 2722.5 | F89: =VLOOKUP(Rtdos_de_la_Empresa8[[#This Row],[Canales]],Tabla39[],2,FALSE) -> 0.4 | G89: =Rtdos_de_la_Empresa8[[#This Row],[Margen]]*Rtdos_de_la_Empresa8[[#This Row],[Facturación]] -> 116026.4 | H89: =YEAR(Rtdos_de_la_Empresa8[[#This Row],[Fecha de Facturacion]]) -> 2008 | I89: =ROUNDUP(MONTH(Rtdos_de_la_Empresa8[[#This Row],[Fecha de Facturacion]])/3, 0) -> 3
A90: 39904 | B90: Internet | C90: España | D90: 347183 | E90: 1330.5 | F90: =VLOOKUP(Rtdos_de_la_Empresa8[[#This Row],[Canales]],Tabla39[],2,FALSE) -> 0.4 | G90: =Rtdos_de_la_Empresa8[[#This Row],[Margen]]*Rtdos_de_la_Empresa8[[#This Row],[Facturación]] -> 138873.2 | H90: =YEAR(Rtdos_de_la_Empresa8[[#This Row],[Fecha de Facturacion]]) -> 2009 | I90: =ROUNDUP(MONTH(Rtdos_de_la_Empresa8[[#This Row],[Fecha de Facturacion]])/3, 0) -> 2
A91: 39692 | B91: Internet | C91: Alemania | D91: 367069 | E91: 2079 | F91: =VLOOKUP(Rtdos_de_la_Empresa8[[#This Row],[Canales]],Tabla39[],2,FALSE) -> 0.4 | G91: =Rtdos_de_la_Empresa8[[#This Row],[Margen]]*Rtdos_de_la_Empresa8[[#This Row],[Facturación]] -> 146827.6 | H91: =YEAR(Rtdos_de_la_Empresa8[[#This Row],[Fecha de Facturacion]]) -> 2008 | I91: =ROUNDUP(MONTH(Rtdos_de_la_Empresa8[[#This Row],[Fecha de Facturacion]])/3, 0) -> 3
A92: 39661 | B92: Directo | C92: Reino Unido | D92: 283794 | E92: 984 | F92: =VLOOKUP(Rtdos_de_la_Empresa8[[#This Row],[Canales]],Tabla39[],2,FALSE) -> 0.4 | G92: =Rtdos_de_la_Empresa8[[#This Row],[Margen]]*Rtdos_de_la_Empresa8[[#This Row],[Facturación]] -> 113517.6 | H92: =YEAR(Rtdos_de_la_Empresa8[[#This Row],[Fecha de Facturacion]]) -> 2008 | I92: =ROUNDUP(MONTH(Rtdos_de_la_Empresa8[[#This Row],[Fecha de Facturacion]])/3, 0) -> 3
A93: 39845 | B93: Internet | C93: Rusia-Paises del Este | D93: 352997 | E93: 2373 | F93: =VLOOKUP(Rtdos_de_la_Empresa8[[#This Row],[Canales]],Tabla39[],2,FALSE) -> 0.4 | G93: =Rtdos_de_la_Empresa8[[#This Row],[Margen]]*Rtdos_de_la_Empresa8[[#This Row],[Facturación]] -> 141198.8 | H93: =YEAR(Rtdos_de_la_Empresa8[[#This Row],[Fecha de Facturacion]]) -> 2009 | I93: =ROUNDUP(MONTH(Rtdos_de_la_Empresa8[[#This Row],[Fecha de Facturacion]])/3, 0) -> 1
A94: 39753 | B94: Directo | C94: Italia-Francia | D94: 356233 | E94: 841.5 | F94: =VLOOKUP(Rtdos_de_la_Empresa8[[#This Row],[Canales]],Tabla39[],2,FALSE) -> 0.4 | G94: =Rtdos_de_la_Empresa8[[#This Row],[Margen]]*Rtdos_de_la_Empresa8[[#This Row],[Facturación]] -> 142493.2 | H94: =YEAR(Rtdos_de_la_Empresa8[[#This Row],[Fecha de Facturacion]]) -> 2008 | I94: =ROUNDUP(MONTH(Rtdos_de_la_Empresa8[[#This Row],[Fecha de Facturacion]])/3, 0) -> 4
A95: 39722 | B95: Internet | C95: Rusia-Paises del Este | D95: 344875 | E95: 1600.5 | F95: =VLOOKUP(Rtdos_de_la_Empresa8[[#This Row],[Canales]],Tabla39[],2,FALSE) -> 0.4 | G95: =Rtdos_de_la_Empresa8[[#This Row],[Margen]]*Rtdos_de_la_Empresa8[[#This Row],[Facturación]] -> 137950 | H95: =YEAR(Rtdos_de_la_Empresa8[[#This Row],[Fecha de Facturacion]]) -> 2008 | I95: =ROUNDUP(MONTH(Rtdos_de_la_Empresa8[[#This Row],[Fecha de Facturacion]])/3, 0) -> 4
A96: 39814 | B96: Internet | C96: España | D96: 345052 | E96: 2392.5 | F96: =VLOOKUP(Rtdos_de_la_Empresa8[[#This Row],[Canales]],Tabla39[],2,FALSE) -> 0.4 | G96: =Rtdos_de_la_Empresa8[[#This Row],[Margen]]*Rtdos_de_la_Empresa8[[#This Row],[Facturación]] -> 138020.8 | H96: =YEAR(Rtdos_de_la_Empresa8[[#This Row],[Fecha de Facturacion]]) -> 2009 | I96: =ROUNDUP(MONTH(Rtdos_de_la_Empresa8[[#This Row],[Fecha de Facturacion]])/3, 0) -> 1
A97: 39783 | B97: Directo | C97: Italia-Francia | D97: 353787 | E97: 2542.5 | F97: =VLOOKUP(Rtdos_de_la_Empresa8[[#This Row],[Canales]],Tabla39[],2,FALSE) -> 0.4 | G97: =Rtdos_de_la_Empresa8[[#This Row],[Margen]]*Rtdos_de_la_Empresa8[[#This Row],[Facturación]] -> 141514.8 | H97: =YEAR(Rtdos_de_la_Empresa8[[#This Row],[Fecha de Facturacion]]) -> 2008 | I97: =ROUNDUP(MONTH(Rtdos_de_la_Empresa8[[#This Row],[Fecha de Facturacion]])/3, 0) -> 4
A98: 39814 | B98: Internet | C98: Alemania | D98: 360882 | E98: 1197 | F98: =VLOOKUP(Rtdos_de_la_Empresa8[[#This Row],[Canales]],Tabla39[],2,FALSE) -> 0.4 | G98: =Rtdos_de_la_Empresa8[[#This Row],[Margen]]*Rtdos_de_la_Empresa8[[#This Row],[Facturación]] -> 144352.8 | H98: =YEAR(Rtdos_de_la_Empresa8[[#This Row],[Fecha de Facturacion]]) -> 2009 | I98: =ROUNDUP(MONTH(Rtdos_de_la_Empresa8[[#This Row],[Fecha de Facturacion]])/3, 0) -> 1
A99: 40210 | B99: Internet | C99: Resto de Europa | D99: 336858 | E99: 2773.5 | F99: =VLOOKUP(Rtdos_de_la_Empresa8[[#This Row],[Canales]],Tabla39[],2,FALSE) -> 0.4 | G99: =Rtdos_de_la_Empresa8[[#This Row],[Margen]]*Rtdos_de_la_Empresa8[[#This Row],[Facturación]] -> 134743.2 | H99: =YEAR(Rtdos_de_la_Empresa8[[#This Row],[Fecha de Facturacion]]) -> 2010 | I99: =ROUNDUP(MONTH(Rtdos_de_la_Empresa8[[#This Row],[Fecha de Facturacion]])/3, 0) -> 1
A100: 39873 | B100: Directo | C100: Benelux | D100: 362464 | E100: 1365 | F100: =VLOOKUP(Rtdos_de_la_Empresa8[[#This Row],[Canales]],Tabla39[],2,FALSE) -> 0.4 | G100: =Rtdos_de_la_Empresa8[[#This Row],[Margen]]*Rtdos_de_la_Empresa8[[#This Row],[Facturación]] -> 144985.6 | H100: =YEAR(Rtdos_de_la_Empresa8[[#This Row],[Fecha de Facturacion]]) -> 2009 | I100: =ROUNDUP(MONTH(Rtdos_de_la_Empresa8[[#This Row],[Fecha de Facturacion]])/3, 0) -> 1
A101: 39508 | B101: Directo | C101: America Norte-Sur | D101: 336620 | E101: 610.5 | F101: =VLOOKUP(Rtdos_de_la_Empresa8[[#This Row],[Canales]],Tabla39[],2,FALSE) -> 0.4 | G101: =Rtdos_de_la_Empresa8[[#This Row],[Margen]]*Rtdos_de_la_Empresa8[[#This Row],[Facturación]] -> 134648 | H101: =YEAR(Rtdos_de_la_Empresa8[[#This Row],[Fecha de Facturacion]]) -> 2008 | I101: =ROUNDUP(MONTH(Rtdos_de_la_Empresa8[[#This Row],[Fecha de Facturacion]])/3, 0) -> 1
A102: 40179 | B102: Agencia | C102: Resto de Paises | D102: 291362 | E102: 1387.5 | F102: =VLOOKUP(Rtdos_de_la_Empresa8[[#This Row],[Canales]],Tabla39[],2,FALSE) -> 0.2 | G102: =Rtdos_de_la_Empresa8[[#This Row],[Margen]]*Rtdos_de_la_Empresa8[[#This Row],[Facturación]] -> 58272.4 | H102: =YEAR(Rtdos_de_la_Empresa8[[#This Row],[Fecha de Facturacion]]) -> 2010 | I102: =ROUNDUP(MONTH(Rtdos_de_la_Empresa8[[#This Row],[Fecha de Facturacion]])/3, 0) -> 1
A103: 39661 | B103: Internet | C103: Paises Nórdicos | D103: 100252 | E103: 1927.5 | F103: =VLOOKUP(Rtdos_de_la_Empresa8[[#This Row],[Canales]],Tabla39[],2,FALSE) -> 0.4 | G103: =Rtdos_de_la_Empresa8[[#This Row],[Margen]]*Rtdos_de_la_Empresa8[[#This Row],[Facturación]] -> 40100.8 | H103: =YEAR(Rtdos_de_la_Empresa8[[#This Row],[Fecha de Facturacion]]) -> 2008 | I103: =ROUNDUP(MONTH(Rtdos_de_la_Empresa8[[#This Row],[Fecha de Facturacion]])/3, 0) -> 3
A104: 39692 | B104: Hoteles | C104: Resto de Paises | D104: 290864 | E104: 1734 | F104: =VLOOKUP(Rtdos_de_la_Empresa8[[#This Row],[Canales]],Tabla39[],2,FALSE) -> 0.15 | G104: =Rtdos_de_la_Empresa8[[#This Row],[Margen]]*Rtdos_de_la_Empresa8[[#This Row],[Facturación]] -> 43629.6 | H104: =YEAR(Rtdos_de_la_Empresa8[[#This Row],[Fecha de Facturacion]]) -> 2008 | I104: =ROUNDUP(MONTH(Rtdos_de_la_Empresa8[[#This Row],[Fecha de Facturacion]])/3, 0) -> 3
A105: 40452 | B105: Internet | C105: Resto de Europa | D105: 333524 | E105: 2620.5 | F105: =VLOOKUP(Rtdos_de_la_Empresa8[[#This Row],[Canales]],Tabla39[],2,FALSE) -> 0.4 | G105: =Rtdos_de_la_Empresa8[[#This Row],[Margen]]*Rtdos_de_la_Empresa8[[#This Row],[Facturación]] -> 133409.6 | H105: =YEAR(Rtdos_de_la_Empresa8[[#This Row],[Fecha de Facturacion]]) -> 2010 | I105: =ROUNDUP(MONTH(Rtdos_de_la_Empresa8[[#This Row],[Fecha de Facturacion]])/3, 0) -> 4
A106: 39845 | B106: Internet | C106: España | D106: 343372 | E106: 717 | F106: =VLOOKUP(Rtdos_de_la_Empresa8[[#This Row],[Canales]],Tabla39[],2,FALSE) -> 0.4 | G106: =Rtdos_de_la_Empresa8[[#This Row],[Margen]]*Rtdos_de_la_Empresa8[[#This Row],[Facturación]] -> 137348.8 | H106: =YEAR(Rtdos_de_la_Empresa8[[#This Row],[Fecha de Facturacion]]) -> 2009 | I106: =ROUNDUP(MONTH(Rtdos_de_la_Empresa8[[#This Row],[Fecha de Facturacion]])/3, 0) -> 1
A107: 39934 | B107: Internet | C107: Rusia-Paises del Este | D107: 340451 | E107: 549 | F107: =VLOOKUP(Rtdos_de_la_Empresa8[[#This Row],[Canales]],Tabla39[],2,FALSE) -> 0.4 | G107: =Rtdos_de_la_Empresa8[[#This Row],[Margen]]*Rtdos_de_la_Empresa8[[#This Row],[Facturación]] -> 136180.4 | H107: =YEAR(Rtdos_de_la_Empresa8[[#This Row],[Fecha de Facturacion]]) -> 2009 | I107: =ROUNDUP(MONTH(Rtdos_de_la_Empresa8[[#This Row],[Fecha de Facturacion]])/3, 0) -> 2
A108: 39569 | B108: Directo | C108: Italia-Francia | D108: 333757 | E108: 2377.5 | F108: =VLOOKUP(Rtdos_de_la_Empresa8[[#This Row],[Canales]],Tabla39[],2,FALSE) -> 0.4 | G108: =Rtdos_de_la_Empresa8[[#This Row],[Margen]]*Rtdos_de_la_Empresa8[[#This Row],[Facturación]] -> 133502.8 | H108: =YEAR(Rtdos_de_la_Empresa8[[#This Row],[Fecha de Facturacion]]) -> 2008 | I108: =ROUNDUP(MONTH(Rtdos_de_la_Empresa8[[#This Row],[Fecha de Facturacion]])/3, 0) -> 2
A109: 39692 | B109: Directo | C109: Reino Unido | D109: 396148 | E109: 1354.5 | F109: =VLOOKUP(Rtdos_de_la_Empresa8[[#This Row],[Canales]],Tabla39[],2,FALSE) -> 0.4 | G109: =Rtdos_de_la_Empresa8[[#This Row],[Margen]]*Rtdos_de_la_Empresa8[[#This Row],[Facturación]] -> 158459.2 | H109: =YEAR(Rtdos_de_la_Empresa8[[#This Row],[Fecha de Facturacion]]) -> 2008 | I109: =ROUNDUP(MONTH(Rtdos_de_la_Empresa8[[#This Row],[Fecha de Facturacion]])/3, 0) -> 3
A110: 39479 | B110: Internet | C110: Alemania | D110: 345627 | E110: 2611.5 | F110: =VLOOKUP(Rtdos_de_la_Empresa8[[#This Row],[Canales]],Tabla39[],2,FALSE) -> 0.4 | G110: =Rtdos_de_la_Empresa8[[#This Row],[Margen]]*Rtdos_de_la_Empresa8[[#This Row],[Facturación]] -> 138250.8 | H110: =YEAR(Rtdos_de_la_Empresa8[[#This Row],[Fecha de Facturacion]]) -> 2008 | I110: =ROUNDUP(MONTH(Rtdos_de_la_Empresa8[[#This Row],[Fecha de Facturacion]])/3, 0) -> 1
A111: 39845 | B111: Directo | C111: America Norte-Sur | D111: 326460 | E111: 2908.5 | F111: =VLOOKUP(Rtdos_de_la_Empresa8[[#This Row],[Canales]],Tabla39[],2,FALSE) -> 0.4 | G111: =Rtdos_de_la_Empresa8[[#This Row],[Margen]]*Rtdos_de_la_Empresa8[[#This Row],[Facturación]] -> 130584 | H111: =YEAR(Rtdos_de_la_Empresa8[[#This Row],[Fecha de Facturacion]]) -> 2009 | I111: =ROUNDUP(MONTH(Rtdos_de_la_Empresa8[[#This Row],[Fecha de Facturacion]])/3, 0) -> 1
A112: 39995 | B112: Hoteles | C112: Resto de Paises | D112: 280704 | E112: 3000 | F112: =VLOOKUP(Rtdos_de_la_Empresa8[[#This Row],[Canales]],Tabla39[],2,FALSE) -> 0.15 | G112: =Rtdos_de_la_Empresa8[[#This Row],[Margen]]*Rtdos_de_la_Empresa8[[#This Row],[Facturación]] -> 42105.6 | H112: =YEAR(Rtdos_de_la_Empresa8[[#This Row],[Fecha de Facturacion]]) -> 2009 | I112: =ROUNDUP(MONTH(Rtdos_de_la_Empresa8[[#This Row],[Fecha de Facturacion]])/3, 0) -> 3
A113: 40330 | B113: Directo | C113: Benelux | D113: 355271 | E113: 1831.5 | F113: =VLOOKUP(Rtdos_de_la_Empresa8[[#This Row],[Canales]],Tabla39[],2,FALSE) -> 0.4 | G113: =Rtdos_de_la_Empresa8[[#This Row],[Margen]]*Rtdos_de_la_Empresa8[[#This Row],[Facturación]] -> 142108.4 | H113: =YEAR(Rtdos_de_la_Empresa8[[#This Row],[Fecha de Facturacion]]) -> 2010 | I113: =ROUNDUP(MONTH(Rtdos_de_la_Empresa8[[#This Row],[Fecha de Facturacion]])/3, 0) -> 2
A114: 39692 | B114: Internet | C114: Paises Nórdicos | D114: 289741 | E114: 2572.5 | F114: =VLOOKUP(Rtdos_de_la_Empresa8[[#This Row],[Canales]],Tabla39[],2,FALSE) -> 0.4 | G114: =Rtdos_de_la_Empresa8[[#This Row],[Margen]]*Rtdos_de_la_Empresa8[[#This Row],[Facturación]] -> 115896.4 | H114: =YEAR(Rtdos_de_la_Empresa8[[#This Row],[Fecha de Facturacion]]) -> 2008 | I114: =ROUNDUP(MONTH(Rtdos_de_la_Empresa8[[#This Row],[Fecha de Facturacion]])/3, 0) -> 3
A115: 40087 | B115: Directo | C115: America Norte-Sur | D115: 315098 | E115: 2727 | F115: =VLOOKUP(Rtdos_de_la_Empresa8[[#This Row],[Canales]],Tabla39[],2,FALSE) -> 0.4 | G115: =Rtdos_de_la_Empresa8[[#This Row],[Margen]]*Rtdos_de_la_Empresa8[[#This Row],[Facturación]] -> 126039.2 | H115: =YEAR(Rtdos_de_la_Empresa8[[#This Row],[Fecha de Facturacion]]) -> 2009 | I115: =ROUNDUP(MONTH(Rtdos_de_la_Empresa8[[#This Row],[Fecha de Facturacion]])/3, 0) -> 4
A116: 39692 | B116: Internet | C116: Paises Nórdicos | D116: 108383 | E116: 1497 | F116: =VLOOKUP(Rtdos_de_la_Empresa8[[#This Row],[Canales]],Tabla39[],2,FALSE) -> 0.4 | G116: =Rtdos_de_la_Empresa8[[#This Row],[Margen]]*Rtdos_de_la_Empresa8[[#This Row],[Facturación]] -> 43353.2 | H116: =YEAR(Rtdos_de_la_Empresa8[[#This Row],[Fecha de Facturacion]]) -> 2008 | I116: =ROUNDUP(MONTH(Rtdos_de_la_Empresa8[[#This Row],[Fecha de Facturacion]])/3, 0) -> 3
A117: 39692 | B117: Directo | C117: Reino Unido | D117: 122408 | E117: 2203.5 | F117: =VLOOKUP(Rtdos_de_la_Empresa8[[#This Row],[Canales]],Tabla39[],2,FALSE) -> 0.4 | G117: =Rtdos_de_la_Empresa8[[#This Row],[Margen]]*Rtdos_de_la_Empresa8[[#This Row],[Facturación]] -> 48963.2 | H117: =YEAR(Rtdos_de_la_Empresa8[[#This Row],[Fecha de Facturacion]]) -> 2008 | I117: =ROUNDUP(MONTH(Rtdos_de_la_Empresa8[[#This Row],[Fecha de Facturacion]])/3, 0) -> 3
A118: 39692 | B118: Internet | C118: America Norte-Sur | D118: 310169 | E118: 1801.5 | F118: =VLOOKUP(Rtdos_de_la_Empresa8[[#This Row],[Canales]],Tabla39[],2,FALSE) -> 0.4 | G118: =Rtdos_de_la_Empresa8[[#This Row],[Margen]]*Rtdos_de_la_Empresa8[[#This Row],[Facturación]] -> 124067.6 | H118: =YEAR(Rtdos_de_la_Empresa8[[#This Row],[Fecha de Facturacion]]) -> 2008 | I118: =ROUNDUP(MONTH(Rtdos_de_la_Empresa8[[#This Row],[Fecha de Facturacion]])/3, 0) -> 3
A119: 39722 | B119: Internet | C119: Paises Nórdicos | D119: 336207 | E119: 1479 | F119: =VLOOKUP(Rtdos_de_la_Empresa8[[#This Row],[Canales]],Tabla39[],2,FALSE) -> 0.4 | G119: =Rtdos_de_la_Empresa8[[#This Row],[Margen]]*Rtdos_de_la_Empresa8[[#This Row],[Facturación]] -> 134482.8 | H119: =YEAR(Rtdos_de_la_Empresa8[[#This Row],[Fecha de Facturacion]]) -> 2008 | I119: =ROUNDUP(MONTH(Rtdos_de_la_Empresa8[[#This Row],[Fecha de Facturacion]])/3, 0) -> 4
A120: 40422 | B120: Agencia | C120: España | D120: 335208 | E120: 2082 | F120: =VLOOKUP(Rtdos_de_la_Empresa8[[#This Row],[Canales]],Tabla39[],2,FALSE) -> 0.2 | G120: =Rtdos_de_la_Empresa8[[#This Row],[Margen]]*Rtdos_de_la_Empresa8[[#This Row],[Facturación]] -> 67041.6 | H120: =YEAR(Rtdos_de_la_Empresa8[[#This Row],[Fecha de Facturacion]]) -> 2010 | I120: =ROUNDUP(MONTH(Rtdos_de_la_Empresa8[[#This Row],[Fecha de Facturacion]])/3, 0) -> 3
A121: 39753 | B121: Internet | C121: Rusia-Paises del Este | D121: 320775 | E121: 1338 | F121: =VLOOKUP(Rtdos_de_la_Empresa8[[#This Row],[Canales]],Tabla39[],2,FALSE) -> 0.4 | G121: =Rtdos_de_la_Empresa8[[#This Row],[Margen]]*Rtdos_de_la_Empresa8[[#This Row],[Facturación]] -> 128310 | H121: =YEAR(Rtdos_de_la_Empresa8[[#This Row],[Fecha de Facturacion]]) -> 2008 | I121: =ROUNDUP(MONTH(Rtdos_de_la_Empresa8[[#This Row],[Fecha de Facturacion]])/3, 0) -> 4
A122: 39722 | B122: Directo | C122: Reino Unido | D122: 381537 | E122: 1780.5 | F122: =VLOOKUP(Rtdos_de_la_Empresa8[[#This Row],[Canales]],Tabla39[],2,FALSE) -> 0.4 | G122: =Rtdos_de_la_Empresa8[[#This Row],[Margen]]*Rtdos_de_la_Empresa8[[#This Row],[Facturación]] -> 152614.8 | H122: =YEAR(Rtdos_de_la_Empresa8[[#This Row],[Fecha de Facturacion]]) -> 2008 | I122: =ROUNDUP(MONTH(Rtdos_de_la_Empresa8[[#This Row],[Fecha de Facturacion]])/3, 0) -> 4
A123: 40330 | B123: Internet | C123: Alemania | D123: 344281 | E123: 2763 | F123: =VLOOKUP(Rtdos_de_la_Empresa8[[#This Row],[Canales]],Tabla39[],2,FALSE) -> 0.4 | G123: =Rtdos_de_la_Empresa8[[#This Row],[Margen]]*Rtdos_de_la_Empresa8[[#This Row],[Facturación]] -> 137712.4 | H123: =YEAR(Rtdos_de_la_Empresa8[[#This Row],[Fecha de Facturacion]]) -> 2010 | I123: =ROUNDUP(MONTH(Rtdos_de_la_Empresa8[[#This Row],[Fecha de Facturacion]])/3, 0) -> 2
A124: 40422 | B124: Internet | C124: Resto de Europa | D124: 326429 | E124: 2505 | F124: =VLOOKUP(Rtdos_de_la_Empresa8[[#This Row],[Canales]],Tabla39[],2,FALSE) -> 0.4 | G124: =Rtdos_de_la_Empresa8[[#This Row],[Margen]]*Rtdos_de_la_Empresa8[[#This Row],[Facturación]] -> 130571.6 | H124: =YEAR(Rtdos_de_la_Empresa8[[#This Row],[Fecha de Facturacion]]) -> 2010 | I124: =ROUNDUP(MONTH(Rtdos_de_la_Empresa8[[#This Row],[Fecha de Facturacion]])/3, 0) -> 3
A125: 39479 | B125: Internet | C125: Benelux | D125: 348013 | E125: 2689.5 | F125: =VLOOKUP(Rtdos_de_la_Empresa8[[#This Row],[Canales]],Tabla39[],2,FALSE) -> 0.4 | G125: =Rtdos_de_la_Empresa8[[#This Row],[Margen]]*Rtdos_de_la_Empresa8[[#This Row],[Facturación]] -> 139205.2 | H125: =YEAR(Rtdos_de_la_Empresa8[[#This Row],[Fecha de Facturacion]]) -> 2008 | I125: =ROUNDUP(MONTH(Rtdos_de_la_Empresa8[[#This Row],[Fecha de Facturacion]])/3, 0) -> 1
A126: 39508 | B126: Internet | C126: Benelux | D126: 345735 | E126: 526.5 | F126: =VLOOKUP(Rtdos_de_la_Empresa8[[#This Row],[Canales]],Tabla39[],2,FALSE) -> 0.4 | G126: =Rtdos_de_la_Empresa8[[#This Row],[Margen]]*Rtdos_de_la_Empresa8[[#This Row],[Facturación]] -> 138294 | H126: =YEAR(Rtdos_de_la_Empresa8[[#This Row],[Fecha de Facturacion]]) -> 2008 | I126: =ROUNDUP(MONTH(Rtdos_de_la_Empresa8[[#This Row],[Fecha de Facturacion]])/3, 0) -> 1
A127: 39600 | B127: Hoteles | C127: Resto de Paises | D127: 278829 | E127: 2436 | F127: =VLOOKUP(Rtdos_de_la_Empresa8[[#This Row],[Canales]],Tabla39[],2,FALSE) -> 0.15 | G127: =Rtdos_de_la_Empresa8[[#This Row],[Margen]]*Rtdos_de_la_Empresa8[[#This Row],[Facturación]] -> 41824.35 | H127: =YEAR(Rtdos_de_la_Empresa8[[#This Row],[Fecha de Facturacion]]) -> 2008 | I127: =ROUNDUP(MONTH(Rtdos_de_la_Empresa8[[#This Row],[Fecha de Facturacion]])/3, 0) -> 2
A128: 39630 | B128: Internet | C128: Resto de Europa | D128: 311104 | E128: 2635.5 | F128: =VLOOKUP(Rtdos_de_la_Empresa8[[#This Row],[Canales]],Tabla39[],2,FALSE) -> 0.4 | G128: =Rtdos_de_la_Empresa8[[#This Row],[Margen]]*Rtdos_de_la_Empresa8[[#This Row],[Facturación]] -> 124441.6 | H128: =YEAR(Rtdos_de_la_Empresa8[[#This Row],[Fecha de Facturacion]]) -> 2008 | I128: =ROUNDUP(MONTH(Rtdos_de_la_Empresa8[[#This Row],[Fecha de Facturacion]])/3, 0) -> 3
A129: 40452 | B129: Internet | C129: Alemania | D129: 341993 | E129: 2307 | F129: =VLOOKUP(Rtdos_de_la_Empresa8[[#This Row],[Canales]],Tabla39[],2,FALSE) -> 0.4 | G129: =Rtdos_de_la_Empresa8[[#This Row],[Margen]]*Rtdos_de_la_Empresa8[[#This Row],[Facturación]] -> 136797.2 | H129: =YEAR(Rtdos_de_la_Empresa8[[#This Row],[Fecha de Facturacion]]) -> 2010 | I129: =ROUNDUP(MONTH(Rtdos_de_la_Empresa8[[#This Row],[Fecha de Facturacion]])/3, 0) -> 4
A130: 40087 | B130: Directo | C130: Italia-Francia | D130: 331377 | E130: 1162.5 | F130: =VLOOKUP(Rtdos_de_la_Empresa8[[#This Row],[Canales]],Tabla39[],2,FALSE) -> 0.4 | G130: =Rtdos_de_la_Empresa8[[#This Row],[Margen]]*Rtdos_de_la_Empresa8[[#This Row],[Facturación]] -> 132550.8 | H130: =YEAR(Rtdos_de_la_Empresa8[[#This Row],[Fecha de Facturacion]]) -> 2009 | I130: =ROUNDUP(MONTH(Rtdos_de_la_Empresa8[[#This Row],[Fecha de Facturacion]])/3, 0) -> 4
A131: 39965 | B131: Directo | C131: Italia-Francia | D131: 326837 | E131: 601.5 | F131: =VLOOKUP(Rtdos_de_la_Empresa8[[#This Row],[Canales]],Tabla39[],2,FALSE) -> 0.4 | G131: =Rtdos_de_la_Empresa8[[#This Row],[Margen]]*Rtdos_de_la_Empresa8[[#This Row],[Facturación]] -> 130734.8 | H131: =YEAR(Rtdos_de_la_Empresa8[[#This Row],[Fecha de Facturacion]]) -> 2009 | I131: =ROUNDUP(MONTH(Rtdos_de_la_Empresa8[[#This Row],[Fecha de Facturacion]])/3, 0) -> 2
A132: 39722 | B132: Directo | C132: Resto de Europa | D132: 297190 | E132: 1767 | F132: =VLOOKUP(Rtdos_de_la_Empresa8[[#This Row],[Canales]],Tabla39[],2,FALSE) -> 0.4 | G132: =Rtdos_de_la_Empresa8[[#This Row],[Margen]]*Rtdos_de_la_Empresa8[[#This Row],[Facturación]] -> 118876 | H132: =YEAR(Rtdos_de_la_Empresa8[[#This Row],[Fecha de Facturacion]]) -> 2008 | I132: =ROUNDUP(MONTH(Rtdos_de_la_Empresa8[[#This Row],[Fecha de Facturacion]])/3, 0) -> 4
A133: 40299 | B133: Agencia | C133: Alemania | D133: 339525 | E133: 1612.5 | F133: =VLOOKUP(Rtdos_de_la_Empresa8[[#This Row],[Canales]],Tabla39[],2,FALSE) -> 0.2 | G133: =Rtdos_de_la_Empresa8[[#This Row],[Margen]]*Rtdos_de_la_Empresa8[[#This Row],[Facturación]] -> 67905 | H133: =YEAR(Rtdos_de_la_Empresa8[[#This Row],[Fecha de Facturacion]]) -> 2010 | I133: =ROUNDUP(MONTH(Rtdos_de_la_Empresa8[[#This Row],[Fecha de Facturacion]])/3, 0) -> 2
A134: 40148 | B134: Agencia | C134: Rusia-Paises del Este | D134: 313466 | E134: 2808 | F134: =VLOOKUP(Rtdos_de_la_Empresa8[[#This Row],[Canales]],Tabla39[],2,FALSE) -> 0.2 | G134: =Rtdos_de_la_Empresa8[[#This Row],[Margen]]*Rtdos_de_la_Empresa8[[#This Row],[Facturación]] -> 62693.2 | H134: =YEAR(Rtdos_de_la_Empresa8[[#This Row],[Fecha de Facturacion]]) -> 2009 | I134: =ROUNDUP(MONTH(Rtdos_de_la_Empresa8[[#This Row],[Fecha de Facturacion]])/3, 0) -> 4
A135: 39753 | B135: Agencia | C135: Paises Nórdicos | D135: 188603 | E135: 855 | F135: =VLOOKUP(Rtdos_de_la_Empresa8[[#This Row],[Canales]],Tabla39[],2,FALSE) -> 0.2 | G135: =Rtdos_de_la_Empresa8[[#This Row],[Margen]]*Rtdos_de_la_Empresa8[[#This Row],[Facturación]] -> 37720.6 | H135: =YEAR(Rtdos_de_la_Empresa8[[#This Row],[Fecha de Facturacion]]) -> 2008 | I135: =ROUNDUP(MONTH(Rtdos_de_la_Empresa8[[#This Row],[Fecha de Facturacion]])/3, 0) -> 4
A136: 39508 | B136: Agencia | C136: Rusia-Paises del Este | D136: 306221 | E136: 1605 | F136: =VLOOKUP(Rtdos_de_la_Empresa8[[#This Row],[Canales]],Tabla39[],2,FALSE) -> 0.2 | G136: =Rtdos_de_la_Empresa8[[#This Row],[Margen]]*Rtdos_de_la_Empresa8[[#This Row],[Facturación]] -> 61244.2 | H136: =YEAR(Rtdos_de_la_Empresa8[[#This Row],[Fecha de Facturacion]]) -> 2008 | I136: =ROUNDUP(MONTH(Rtdos_de_la_Empresa8[[#This Row],[Fecha de Facturacion]])/3, 0) -> 1
A137: 40360 | B137: Internet | C137: Benelux | D137: 335973 | E137: 949.5 | F137: =VLOOKUP(Rtdos_de_la_Empresa8[[#This Row],[Canales]],Tabla39[],2,FALSE) -> 0.4 | G137: =Rtdos_de_la_Empresa8[[#This Row],[Margen]]*Rtdos_de_la_Empresa8[[#This Row],[Facturación]] -> 134389.2 | H137: =YEAR(Rtdos_de_la_Empresa8[[#This Row],[Fecha de Facturacion]]) -> 2010 | I137: =ROUNDUP(MONTH(Rtdos_de_la_Empresa8[[#This Row],[Fecha de Facturacion]])/3, 0) -> 3
A138: 39934 | B138: Internet | C138: America Norte-Sur | D138: 307482 | E138: 459 | F138: =VLOOKUP(Rtdos_de_la_Empresa8[[#This Row],[Canales]],Tabla39[],2,FALSE) -> 0.4 | G138: =Rtdos_de_la_Empresa8[[#This Row],[Margen]]*Rtdos_de_la_Empresa8[[#This Row],[Facturación]] -> 122992.8 | H138: =YEAR(Rtdos_de_la_Empresa8[[#This Row],[Fecha de Facturacion]]) -> 2009 | I138: =ROUNDUP(MONTH(Rtdos_de_la_Empresa8[[#This Row],[Fecha de Facturacion]])/3, 0) -> 2
A139: 40238 | B139: Hoteles | C139: España | D139: 327855 | E139: 1315.5 | F139: =VLOOKUP(Rtdos_de_la_Empresa8[[#This Row],[Canales]],Tabla39[],2,FALSE) -> 0.15 | G139: =Rtdos_de_la_Empresa8[[#This Row],[Margen]]*Rtdos_de_la_Empresa8[[#This Row],[Facturación]] -> 49178.25 | H139: =YEAR(Rtdos_de_la_Empresa8[[#This Row],[Fecha de Facturacion]]) -> 2010 | I139: =ROUNDUP(MONTH(Rtdos_de_la_Empresa8[[#This Row],[Fecha de Facturacion]])/3, 0) -> 1
A140: 40210 | B140: Directo | C140: España | D140: 327180 | E140: 1944 | F140: =VLOOKUP(Rtdos_de_la_Empresa8[[#This Row],[Canales]],Tabla39[],2,FALSE) -> 0.4 | G140: =Rtdos_de_la_Empresa8[[#This Row],[Margen]]*Rtdos_de_la_Empresa8[[#This Row],[Facturación]] -> 130872 | H140: =YEAR(Rtdos_de_la_Empresa8[[#This Row],[Fecha de Facturacion]]) -> 2010 | I140: =ROUNDUP(MONTH(Rtdos_de_la_Empresa8[[#This Row],[Fecha de Facturacion]])/3, 0) -> 1
A141: 39845 | B141: Internet | C141: Italia-Francia | D141: 318248 | E141: 1597.5 | F141: =VLOOKUP(Rtdos_de_la_Empresa8[[#This Row],[Canales]],Tabla39[],2,FALSE) -> 0.4 | G141: =Rtdos_de_la_Empresa8[[#This Row],[Margen]]*Rtdos_de_la_Empresa8[[#This Row],[Facturación]] -> 127299.2 | H141: =YEAR(Rtdos_de_la_Empresa8[[#This Row],[Fecha de Facturacion]]) -> 2009 | I141: =ROUNDUP(MONTH(Rtdos_de_la_Empresa8[[#This Row],[Fecha de Facturacion]])/3, 0) -> 1
A142: 39753 | B142: Directo | C142: Reino Unido | D142: 179304 | E142: 2779.5 | F142: =VLOOKUP(Rtdos_de_la_Empresa8[[#This Row],[Canales]],Tabla39[],2,FALSE) -> 0.4 | G142: =Rtdos_de_la_Empresa8[[#This Row],[Margen]]*Rtdos_de_la_Empresa8[[#This Row],[Facturación]] -> 71721.6 | H142: =YEAR(Rtdos_de_la_Empresa8[[#This Row],[Fecha de Facturacion]]) -> 2008 | I142: =ROUNDUP(MONTH(Rtdos_de_la_Empresa8[[#This Row],[Fecha de Facturacion]])/3, 0) -> 4
A143: 40330 | B143: Hoteles | C143: Resto de Paises | D143: 264161 | E143: 1599 | F143: =VLOOKUP(Rtdos_de_la_Empresa8[[#This Row],[Canales]],Tabla39[],2,FALSE) -> 0.15 | G143: =Rtdos_de_la_Empresa8[[#This Row],[Margen]]*Rtdos_de_la_Empresa8[[#This Row],[Facturación]] -> 39624.15 | H143: =YEAR(Rtdos_de_la_Empresa8[[#This Row],[Fecha de Facturacion]]) -> 2010 | I143: =ROUNDUP(MONTH(Rtdos_de_la_Empresa8[[#This Row],[Fecha de Facturacion]])/3, 0) -> 2
A144: 40391 | B144: Agencia | C144: Resto de Paises | D144: 260879 | E144: 843 | F144: =VLOOKUP(Rtdos_de_la_Empresa8[[#This Row],[Canales]],Tabla39[],2,FALSE) -> 0.2 | G144: =Rtdos_de_la_Empresa8[[#This Row],[Margen]]*Rtdos_de_la_Empresa8[[#This Row],[Facturación]] -> 52175.8 | H144: =YEAR(Rtdos_de_la_Empresa8[[#This Row],[Fecha de Facturacion]]) -> 2010 | I144: =ROUNDUP(MONTH(Rtdos_de_la_Empresa8[[#This Row],[Fecha de Facturacion]])/3, 0) -> 3
A145: 39783 | B145: Agencia | C145: Paises Nórdicos | D145: 399207 | E145: 2626.5 | F145: =VLOOKUP(Rtdos_de_la_Empresa8[[#This Row],[Canales]],Tabla39[],2,FALSE) -> 0.2 | G145: =Rtdos_de_la_Empresa8[[#This Row],[Margen]]*Rtdos_de_la_Empresa8[[#This Row],[Facturación]] -> 79841.4 | H145: =YEAR(Rtdos_de_la_Empresa8[[#This Row],[Fecha de Facturacion]]) -> 2008 | I145: =ROUNDUP(MONTH(Rtdos_de_la_Empresa8[[#This Row],[Fecha de Facturacion]])/3, 0) -> 4
A146: 39783 | B146: Directo | C146: Reino Unido | D146: 397191 | E146: 2620.5 | F146: =VLOOKUP(Rtdos_de_la_Empresa8[[#This Row],[Canales]],Tabla39[],2,FALSE) -> 0.4 | G146: =Rtdos_de_la_Empresa8[[#This Row],[Margen]]*Rtdos_de_la_Empresa8[[#This Row],[Facturación]] -> 158876.4 | H146: =YEAR(Rtdos_de_la_Empresa8[[#This Row],[Fecha de Facturacion]]) -> 2008 | I146: =ROUNDUP(MONTH(Rtdos_de_la_Empresa8[[#This Row],[Fecha de Facturacion]])/3, 0) -> 4
A147: 39753 | B147: Agencia | C147: Rusia-Paises del Este | D147: 300601 | E147: 1459.5 | F147: =VLOOKUP(Rtdos_de_la_Empresa8[[#This Row],[Canales]],Tabla39[],2,FALSE) -> 0.2 | G147: =Rtdos_de_la_Empresa8[[#This Row],[Margen]]*Rtdos_de_la_Empresa8[[#This Row],[Facturación]] -> 60120.2 | H147: =YEAR(Rtdos_de_la_Empresa8[[#This Row],[Fecha de Facturacion]]) -> 2008 | I147: =ROUNDUP(MONTH(Rtdos_de_la_Empresa8[[#This Row],[Fecha de Facturacion]])/3, 0) -> 4
A148: 40391 | B148: Hoteles | C148: Resto de Paises | D148: 259971 | E148: 2313 | F148: =VLOOKUP(Rtdos_de_la_Empresa8[[#This Row],[Canales]],Tabla39[],2,FALSE) -> 0.15 | G148: =Rtdos_de_la_Empresa8[[#This Row],[Margen]]*Rtdos_de_la_Empresa8[[#This Row],[Facturación]] -> 38995.65 | H148: =YEAR(Rtdos_de_la_Empresa8[[#This Row],[Fecha de Facturacion]]) -> 2010 | I148: =ROUNDUP(MONTH(Rtdos_de_la_Empresa8[[#This Row],[Fecha de Facturacion]])/3, 0) -> 3
A149: 39479 | B149: Internet | C149: Italia-Francia | D149: 316426 | E149: 1312.5 | F149: =VLOOKUP(Rtdos_de_la_Empresa8[[#This Row],[Canales]],Tabla39[],2,FALSE) -> 0.4 | G149: =Rtdos_de_la_Empresa8[[#This Row],[Margen]]*Rtdos_de_la_Empresa8[[#This Row],[Facturación]] -> 126570.4 | H149: =YEAR(Rtdos_de_la_Empresa8[[#This Row],[Fecha de Facturacion]]) -> 2008 | I149: =ROUNDUP(MONTH(Rtdos_de_la_Empresa8[[#This Row],[Fecha de Facturacion]])/3, 0) -> 1
A150: 40299 | B150: Hoteles | C150: Benelux | D150: 327830 | E150: 421.5 | F150: =VLOOKUP(Rtdos_de_la_Empresa8[[#This Row],[Canales]],Tabla39[],2,FALSE) -> 0.15 | G150: =Rtdos_de_la_Empresa8[[#This Row],[Margen]]*Rtdos_de_la_Empresa8[[#This Row],[Facturación]] -> 49174.5 | H150: =YEAR(Rtdos_de_la_Empresa8[[#This Row],[Fecha de Facturacion]]) -> 2010 | I150: =ROUNDUP(MONTH(Rtdos_de_la_Empresa8[[#This Row],[Fecha de Facturacion]])/3, 0) -> 2
A151: 39995 | B151: Internet | C151: America Norte-Sur | D151: 300132 | E151: 2119.5 | F151: =VLOOKUP(Rtdos_de_la_Empresa8[[#This Row],[Canales]],Tabla39[],2,FALSE) -> 0.4 | G151: =Rtdos_de_la_Empresa8[[#This Row],[Margen]]*Rtdos_de_la_Empresa8[[#This Row],[Facturación]] -> 120052.8 | H151: =YEAR(Rtdos_de_la_Empresa8[[#This Row],[Fecha de Facturacion]]) -> 2009 | I151: =ROUNDUP(MONTH(Rtdos_de_la_Empresa8[[#This Row],[Fecha de Facturacion]])/3, 0) -> 3
A152: 39569 | B152: Internet | C152: España | D152: 326929 | E152: 1357.5 | F152: =VLOOKUP(Rtdos_de_la_Empresa8[[#This Row],[Canales]],Tabla39[],2,FALSE) -> 0.4 | G152: =Rtdos_de_la_Empresa8[[#This Row],[Margen]]*Rtdos_de_la_Empresa8[[#This Row],[Facturación]] -> 130771.6 | H152: =YEAR(Rtdos_de_la_Empresa8[[#This Row],[Fecha de Facturacion]]) -> 2008 | I152: =ROUNDUP(MONTH(Rtdos_de_la_Empresa8[[#This Row],[Fecha de Facturacion]])/3, 0) -> 2
A153: 39783 | B153: Directo | C153: Reino Unido | D153: 266317 | E153: 2784 | F153: =VLOOKUP(Rtdos_de_la_Empresa8[[#This Row],[Canales]],Tabla39[],2,FALSE) -> 0.4 | G153: =Rtdos_de_la_Empresa8[[#This Row],[Margen]]*Rtdos_de_la_Empresa8[[#This Row],[Facturación]] -> 106526.8 | H153: =YEAR(Rtdos_de_la_Empresa8[[#This Row],[Fecha de Facturacion]]) -> 2008 | I153: =ROUNDUP(MONTH(Rtdos_de_la_Empresa8[[#This Row],[Fecha de Facturacion]])/3, 0) -> 4
A154: 40299 | B154: Internet | C154: America Norte-Sur | D154: 277483 | E154: 1981.5 | F154: =VLOOKUP(Rtdos_de_la_Empresa8[[#This Row],[Canales]],Tabla39[],2,FALSE) -> 0.4 | G154: =Rtdos_de_la_Empresa8[[#This Row],[Margen]]*Rtdos_de_la_Empresa8[[#This Row],[Facturación]] -> 110993.2 | H154: =YEAR(Rtdos_de_la_Empresa8[[#This Row],[Fecha de Facturacion]]) -> 2010 | I154: =ROUNDUP(MONTH(Rtdos_de_la_Empresa8[[#This Row],[Fecha de Facturacion]])/3, 0) -> 2
A155: 39965 | B155: Agencia | C155: Alemania | D155: 327786 | E155: 2652 | F155: =VLOOKUP(Rtdos_de_la_Empresa8[[#This Row],[Canales]],Tabla39[],2,FALSE) -> 0.2 | G155: =Rtdos_de_la_Empresa8[[#This Row],[Margen]]*Rtdos_de_la_Empresa8[[#This Row],[Facturación]] -> 65557.2 | H155: =YEAR(Rtdos_de_la_Empresa8[[#This Row],[Fecha de Facturacion]]) -> 2009 | I155: =ROUNDUP(MONTH(Rtdos_de_la_Empresa8[[#This Row],[Fecha de Facturacion]])/3, 0) -> 2
A156: 40087 | B156: Hoteles | C156: Resto de Europa | D156: 296475 | E156: 2700 | F156: =VLOOKUP(Rtdos_de_la_Empresa8[[#This Row],[Canales]],Tabla39[],2,FALSE) -> 0.15 | G156: =Rtdos_de_la_Empresa8[[#This Row],[Margen]]*Rtdos_de_la_Empresa8[[#This Row],[Facturación]] -> 44471.25 | H156: =YEAR(Rtdos_de_la_Empresa8[[#This Row],[Fecha de Facturacion]]) -> 2009 | I156: =ROUNDUP(MONTH(Rtdos_de_la_Empresa8[[#This Row],[Fecha de Facturacion]])/3, 0) -> 4
A157: 39814 | B157: Agencia | C157: Paises Nórdicos | D157: 396280 | E157: 517.5 | F157: =VLOOKUP(Rtdos_de_la_Empresa8[[#This Row],[Canales]],Tabla39[],2,FALSE) -> 0.2 | G157: =Rtdos_de_la_Empresa8[[#This Row],[Margen]]*Rtdos_de_la_Empresa8[[#This Row],[Facturación]] -> 79256 | H157: =YEAR(Rtdos_de_la_Empresa8[[#This Row],[Fecha de Facturacion]]) -> 2009 | I157: =ROUNDUP(MONTH(Rtdos_de_la_Empresa8[[#This Row],[Fecha de Facturacion]])/3, 0) -> 1
A158: 39995 | B158: Hoteles | C158: Resto de Europa | D158: 286631 | E158: 2068.5 | F158: =VLOOKUP(Rtdos_de_la_Empresa8[[#This Row],[Canales]],Tabla39[],2,FALSE) -> 0.15 | G158: =Rtdos_de_la_Empresa8[[#This Row],[Margen]]*Rtdos_de_la_Empresa8[[#This Row],[Facturación]] -> 42994.65 | H158: =YEAR(Rtdos_de_la_Empresa8[[#This Row],[Fecha de Facturacion]]) -> 2009 | I158: =ROUNDUP(MONTH(Rtdos_de_la_Empresa8[[#This Row],[Fecha de Facturacion]])/3, 0) -> 3
A159: 40269 | B159: Hoteles | C159: Alemania | D159: 308018 | E159: 724.5 | F159: =VLOOKUP(Rtdos_de_la_Empresa8[[#This Row],[Canales]],Tabla39[],2,FALSE) -> 0.15 | G159: =Rtdos_de_la_Empresa8[[#This Row],[Margen]]*Rtdos_de_la_Empresa8[[#This Row],[Facturación]] -> 46202.7 | H159: =YEAR(Rtdos_de_la_Empresa8[[#This Row],[Fecha de Facturacion]]) -> 2010 | I159: =ROUNDUP(MONTH(Rtdos_de_la_Empresa8[[#This Row],[Fecha de Facturacion]])/3, 0) -> 2
A160: 39814 | B160: Agencia | C160: Paises Nórdicos | D160: 352319 | E160: 1449 | F160: =VLOOKUP(Rtdos_de_la_Empresa8[[#This Row],[Canales]],Tabla39[],2,FALSE) -> 0.2 | G160: =Rtdos_de_la_Empresa8[[#This Row],[Margen]]*Rtdos_de_la_Empresa8[[#This Row],[Facturación]] -> 70463.8 | H160: =YEAR(Rtdos_de_la_Empresa8[[#This Row],[Fecha de Facturacion]]) -> 2009 | I160: =ROUNDUP(MONTH(Rtdos_de_la_Empresa8[[#This Row],[Fecha de Facturacion]])/3, 0) -> 1
A161: 40148 | B161: Hoteles | C161: Resto de Europa | D161: 269078 | E161: 774 | F161: =VLOOKUP(Rtdos_de_la_Empresa8[[#This Row],[Canales]],Tabla39[],2,FALSE) -> 0.15 | G161: =Rtdos_de_la_Empresa8[[#This Row],[Margen]]*Rtdos_de_la_Empresa8[[#This Row],[Facturación]] -> 40361.7 | H161: =YEAR(Rtdos_de_la_Empresa8[[#This Row],[Fecha de Facturacion]]) -> 2009 | I161: =ROUNDUP(MONTH(Rtdos_de_la_Empresa8[[#This Row],[Fecha de Facturacion]])/3, 0) -> 4
A162: 40026 | B162: Internet | C162: España | D162: 311359 | E162: 1906.5 | F162: =VLOOKUP(Rtdos_de_la_Empresa8[[#This Row],[Canales]],Tabla39[],2,FALSE) -> 0.4 | G162: =Rtdos_de_la_Empresa8[[#This Row],[Margen]]*Rtdos_de_la_Empresa8[[#This Row],[Facturación]] -> 124543.6 | H162: =YEAR(Rtdos_de_la_Empresa8[[#This Row],[Fecha de Facturacion]]) -> 2009 | I162: =ROUNDUP(MONTH(Rtdos_de_la_Empresa8[[#This Row],[Fecha de Facturacion]])/3, 0) -> 3
A163: 39539 | B163: Agencia | C163: Rusia-Paises del Este | D163: 296874 | E163: 1719 | F163: =VLOOKUP(Rtdos_de_la_Empresa8[[#This Row],[Canales]],Tabla39[],2,FALSE) -> 0.2 | G163: =Rtdos_de_la_Empresa8[[#This Row],[Margen]]*Rtdos_de_la_Empresa8[[#This Row],[Facturación]] -> 59374.8 | H163: =YEAR(Rtdos_de_la_Empresa8[[#This Row],[Fecha de Facturacion]]) -> 2008 | I163: =ROUNDUP(MONTH(Rtdos_de_la_Empresa8[[#This Row],[Fecha de Facturacion]])/3, 0) -> 2
A164: 39722 | B164: Hoteles | C164: Alemania | D164: 276529 | E164: 2631 | F164: =VLOOKUP(Rtdos_de_la_Empresa8[[#This Row],[Canales]],Tabla39[],2,FALSE) -> 0.15 | G164: =Rtdos_de_la_Empresa8[[#This Row],[Margen]]*Rtdos_de_la_Empresa8[[#This Row],[Facturación]] -> 41479.35 | H164: =YEAR(Rtdos_de_la_Empresa8[[#This Row],[Fecha de Facturacion]]) -> 2008 | I164: =ROUNDUP(MONTH(Rtdos_de_la_Empresa8[[#This Row],[Fecha de Facturacion]])/3, 0) -> 4
A165: 39845 | B165: Agencia | C165: Benelux | D165: 306167 | E165: 871.5 | F165: =VLOOKUP(Rtdos_de_la_Empresa8[[#This Row],[Canales]],Tabla39[],2,FALSE) -> 0.2 | G165: =Rtdos_de_la_Empresa8[[#This Row],[Margen]]*Rtdos_de_la_Empresa8[[#This Row],[Facturación]] -> 61233.4 | H165: =YEAR(Rtdos_de_la_Empresa8[[#This Row],[Fecha de Facturacion]]) -> 2009 | I165: =ROUNDUP(MONTH(Rtdos_de_la_Empresa8[[#This Row],[Fecha de Facturacion]])/3, 0) -> 1
A166: 39814 | B166: Directo | C166: Reino Unido | D166: 297139 | E166: 2877 | F166: =VLOOKUP(Rtdos_de_la_Empresa8[[#This Row],[Canales]],Tabla39[],2,FALSE) -> 0.4 | G166: =Rtdos_de_la_Empresa8[[#This Row],[Margen]]*Rtdos_de_la_Empresa8[[#This Row],[Facturación]] -> 118855.6 | H166: =YEAR(Rtdos_de_la_Empresa8[[#This Row],[Fecha de Facturacion]]) -> 2009 | I166: =ROUNDUP(MONTH(Rtdos_de_la_Empresa8[[#This Row],[Fecha de Facturacion]])/3, 0) -> 1
A167: 39479 | B167: Hoteles | C167: Resto de Paises | D167: 256549 | E167: 2388 | F167: =VLOOKUP(Rtdos_de_la_Empresa8[[#This Row],[Canales]],Tabla39[],2,FALSE) -> 0.15 | G167: =Rtdos_de_la_Empresa8[[#This Row],[Margen]]*Rtdos_de_la_Empresa8[[#This Row],[Facturación]] -> 38482.35 | H167: =YEAR(Rtdos_de_la_Empresa8[[#This Row],[Fecha de Facturacion]]) -> 2008 | I167: =ROUNDUP(MONTH(Rtdos_de_la_Empresa8[[#This Row],[Fecha de Facturacion]])/3, 0) -> 1
A168: 39965 | B168: Internet | C168: Italia-Francia | D168: 314699 | E168: 987 | F168: =VLOOKUP(Rtdos_de_la_Empresa8[[#This Row],[Canales]],Tabla39[],2,FALSE) -> 0.4 | G168: =Rtdos_de_la_Empresa8[[#This Row],[Margen]]*Rtdos_de_la_Empresa8[[#This Row],[Facturación]] -> 125879.6 | H168: =YEAR(Rtdos_de_la_Empresa8[[#This Row],[Fecha de Facturacion]]) -> 2009 | I168: =ROUNDUP(MONTH(Rtdos_de_la_Empresa8[[#This Row],[Fecha de Facturacion]])/3, 0) -> 2
A169: 40087 | B169: Internet | C169: America Norte-Sur | D169: 275379 | E169: 1095 | F169: =VLOOKUP(Rtdos_de_la_Empresa8[[#This Row],[Canales]],Tabla39[],2,FALSE) -> 0.4 | G169: =Rtdos_de_la_Empresa8[[#This Row],[Margen]]*Rtdos_de_la_Empresa8[[#This Row],[Facturación]] -> 110151.6 | H169: =YEAR(Rtdos_de_la_Empresa8[[#This Row],[Fecha de Facturacion]]) -> 2009 | I169: =ROUNDUP(MONTH(Rtdos_de_la_Empresa8[[#This Row],[Fecha de Facturacion]])/3, 0) -> 4
A170: 39904 | B170: Hoteles | C170: Resto de Europa | D170: 265875 | E170: 2407.5 | F170: =VLOOKUP(Rtdos_de_la_Empresa8[[#This Row],[Canales]],Tabla39[],2,FALSE) -> 0.15 | G170: =Rtdos_de_la_Empresa8[[#This Row],[Margen]]*Rtdos_de_la_Empresa8[[#This Row],[Facturación]] -> 39881.25 | H170: =YEAR(Rtdos_de_la_Empresa8[[#This Row],[Fecha de Facturacion]]) -> 2009 | I170: =ROUNDUP(MONTH(Rtdos_de_la_Empresa8[[#This Row],[Fecha de Facturacion]])/3, 0) -> 2
A171: 39630 | B171: Internet | C171: España | D171: 305996 | E171: 2089.5 | F171: =VLOOKUP(Rtdos_de_la_Empresa8[[#This Row],[Canales]],Tabla39[],2,FALSE) -> 0.4 | G171: =Rtdos_de_la_Empresa8[[#This Row],[Margen]]*Rtdos_de_la_Empresa8[[#This Row],[Facturación]] -> 122398.4 | H171: =YEAR(Rtdos_de_la_Empresa8[[#This Row],[Fecha de Facturacion]]) -> 2008 | I171: =ROUNDUP(MONTH(Rtdos_de_la_Empresa8[[#This Row],[Fecha de Facturacion]])/3, 0) -> 3
A172: 39692 | B172: Directo | C172: Benelux | D172: 293367 | E172: 1791 | F172: =VLOOKUP(Rtdos_de_la_Empresa8[[#This Row],[Canales]],Tabla39[],2,FALSE) -> 0.4 | G172: =Rtdos_de_la_Empresa8[[#This Row],[Margen]]*Rtdos_de_la_Empresa8[[#This Row],[Facturación]] -> 117346.8 | H172: =YEAR(Rtdos_de_la_Empresa8[[#This Row],[Fecha de Facturacion]]) -> 2008 | I172: =ROUNDUP(MONTH(Rtdos_de_la_Empresa8[[#This Row],[Fecha de Facturacion]])/3, 0) -> 3
A173: 40118 | B173: Hoteles | C173: Resto de Paises | D173: 254892 | E173: 606 | F173: =VLOOKUP(Rtdos_de_la_Empresa8[[#This Row],[Canales]],Tabla39[],2,FALSE) -> 0.15 | G173: =Rtdos_de_la_Empresa8[[#This Row],[Margen]]*Rtdos_de_la_Empresa8[[#This Row],[Facturación]] -> 38233.8 | H173: =YEAR(Rtdos_de_la_Empresa8[[#This Row],[Fecha de Facturacion]]) -> 2009 | I173: =ROUNDUP(MONTH(Rtdos_de_la_Empresa8[[#This Row],[Fecha de Facturacion]])/3, 0) -> 4
A174: 39845 | B174: Directo | C174: Reino Unido | D174: 385975 | E174: 1585.5 | F174: =VLOOKUP(Rtdos_de_la_Empresa8[[#This Row],[Canales]],Tabla39[],2,FALSE) -> 0.4 | G174: =Rtdos_de_la_Empresa8[[#This Row],[Margen]]*Rtdos_de_la_Empresa8[[#This Row],[Facturación]] -> 154390 | H174: =YEAR(Rtdos_de_la_Empresa8[[#This Row],[Fecha de Facturacion]]) -> 2009 | I174: =ROUNDUP(MONTH(Rtdos_de_la_Empresa8[[#This Row],[Fecha de Facturacion]])/3, 0) -> 1
A175: 40026 | B175: Internet | C175: Italia-Francia | D175: 298312 | E175: 1840.5 | F175: =VLOOKUP(Rtdos_de_la_Empresa8[[#This Row],[Canales]],Tabla39[],2,FALSE) -> 0.4 | G175: =Rtdos_de_la_Empresa8[[#This Row],[Margen]]*Rtdos_de_la_Empresa8[[#This Row],[Facturación]] -> 119324.8 | H175: =YEAR(Rtdos_de_la_Empresa8[[#This Row],[Fecha de Facturacion]]) -> 2009 | I175: =ROUNDUP(MONTH(Rtdos_de_la_Empresa8[[#This Row],[Fecha de Facturacion]])/3, 0) -> 3
A176: 39630 | B176: Agencia | C176: Rusia-Paises del Este | D176: 292630 | E176: 1708.5 | F176: =VLOOKUP(Rtdos_de_la_Empresa8[[#This Row],[Canales]],Tabla39[],2,FALSE) -> 0.2 | G176: =Rtdos_de_la_Empresa8[[#This Row],[Margen]]*Rtdos_de_la_Empresa8[[#This Row],[Facturación]] -> 58526 | H176: =YEAR(Rtdos_de_la_Empresa8[[#This Row],[Fecha de Facturacion]]) -> 2008 | I176: =ROUNDUP(MONTH(Rtdos_de_la_Empresa8[[#This Row],[Fecha de Facturacion]])/3, 0) -> 3
A177: 39845 | B177: Agencia | C177: Paises Nórdicos | D177: 102172 | E177: 532.5 | F177: =VLOOKUP(Rtdos_de_la_Empresa8[[#This Row],[Canales]],Tabla39[],2,FALSE) -> 0.2 | G177: =Rtdos_de_la_Empresa8[[#This Row],[Margen]]*Rtdos_de_la_Empresa8[[#This Row],[Facturación]] -> 20434.4 | H177: =YEAR(Rtdos_de_la_Empresa8[[#This Row],[Fecha de Facturacion]]) -> 2009 | I177: =ROUNDUP(MONTH(Rtdos_de_la_Empresa8[[#This Row],[Fecha de Facturacion]])/3, 0) -> 1
A178: 40057 | B178: Agencia | C178: Benelux | D178: 291465 | E178: 1753.5 | F178: =VLOOKUP(Rtdos_de_la_Empresa8[[#This Row],[Canales]],Tabla39[],2,FALSE) -> 0.2 | G178: =Rtdos_de_la_Empresa8[[#This Row],[Margen]]*Rtdos_de_la_Empresa8[[#This Row],[Facturación]] -> 58293 | H178: =YEAR(Rtdos_de_la_Empresa8[[#This Row],[Fecha de Facturacion]]) -> 2009 | I178: =ROUNDUP(MONTH(Rtdos_de_la_Empresa8[[#This Row],[Fecha de Facturacion]])/3, 0) -> 3
A179: 40087 | B179: Hoteles | C179: Alemania | D179: 269983 | E179: 1923 | F179: =VLOOKUP(Rtdos_de_la_Empresa8[[#This Row],[Canales]],Tabla39[],2,FALSE) -> 0.15 | G179: =Rtdos_de_la_Empresa8[[#This Row],[Margen]]*Rtdos_de_la_Empresa8[[#This Row],[Facturación]] -> 40497.45 | H179: =YEAR(Rtdos_de_la_Empresa8[[#This Row],[Fecha de Facturacion]]) -> 2009 | I179: =ROUNDUP(MONTH(Rtdos_de_la_Empresa8[[#This Row],[Fecha de Facturacion]])/3, 0) -> 4
A180: 40148 | B180: Agencia | C180: Rusia-Paises del Este | D180: 271114 | E180: 1122 | F180: =VLOOKUP(Rtdos_de_la_Empresa8[[#This Row],[Canales]],Tabla39[],2,FALSE) -> 0.2 | G180: =Rtdos_de_la_Empresa8[[#This Row],[Margen]]*Rtdos_de_la_Empresa8[[#This Row],[Facturación]] -> 54222.8 | H180: =YEAR(Rtdos_de_la_Empresa8[[#This Row],[Fecha de Facturacion]]) -> 2009 | I180: =ROUNDUP(MONTH(Rtdos_de_la_Empresa8[[#This Row],[Fecha de Facturacion]])/3, 0) -> 4
A181: 39539 | B181: Agencia | C181: America Norte-Sur | D181: 268883 | E181: 1270.5 | F181: =VLOOKUP(Rtdos_de_la_Empresa8[[#This Row],[Canales]],Tabla39[],2,FALSE) -> 0.2 | G181: =Rtdos_de_la_Empresa8[[#This Row],[Margen]]*Rtdos_de_la_Empresa8[[#This Row],[Facturación]] -> 53776.6 | H181: =YEAR(Rtdos_de_la_Empresa8[[#This Row],[Fecha de Facturacion]]) -> 2008 | I181: =ROUNDUP(MONTH(Rtdos_de_la_Empresa8[[#This Row],[Fecha de Facturacion]])/3, 0) -> 2
A182: 40299 | B182: Internet | C182: España | D182: 301343 | E182: 735 | F182: =VLOOKUP(Rtdos_de_la_Empresa8[[#This Row],[Canales]],Tabla39[],2,FALSE) -> 0.4 | G182: =Rtdos_de_la_Empresa8[[#This Row],[Margen]]*Rtdos_de_la_Empresa8[[#This Row],[Facturación]] -> 120537.2 | H182: =YEAR(Rtdos_de_la_Empresa8[[#This Row],[Fecha de Facturacion]]) -> 2010 | I182: =ROUNDUP(MONTH(Rtdos_de_la_Empresa8[[#This Row],[Fecha de Facturacion]])/3, 0) -> 2
A183: 40087 | B183: Hoteles | C183: Resto de Paises | D183: 244667 | E183: 1207.5 | F183: =VLOOKUP(Rtdos_de_la_Empresa8[[#This Row],[Canales]],Tabla39[],2,FALSE) -> 0.15 | G183: =Rtdos_de_la_Empresa8[[#This Row],[Margen]]*Rtdos_de_la_Empresa8[[#This Row],[Facturación]] -> 36700.05 | H183: =YEAR(Rtdos_de_la_Empresa8[[#This Row],[Fecha de Facturacion]]) -> 2009 | I183: =ROUNDUP(MONTH(Rtdos_de_la_Empresa8[[#This Row],[Fecha de Facturacion]])/3, 0) -> 4
A184: 39873 | B184: Hoteles | C184: Paises Nórdicos | D184: 339466 | E184: 883.5 | F184: =VLOOKUP(Rtdos_de_la_Empresa8[[#This Row],[Canales]],Tabla39[],2,FALSE) -> 0.15 | G184: =Rtdos_de_la_Empresa8[[#This Row],[Margen]]*Rtdos_de_la_Empresa8[[#This Row],[Facturación]] -> 50919.9 | H184: =YEAR(Rtdos_de_la_Empresa8[[#This Row],[Fecha de Facturacion]]) -> 2009 | I184: =ROUNDUP(MONTH(Rtdos_de_la_Empresa8[[#This Row],[Fecha de Facturacion]])/3, 0) -> 1
A185: 39873 | B185: Hoteles | C185: Resto de Paises | D185: 241046 | E185: 457.5 | F185: =VLOOKUP(Rtdos_de_la_Empresa8[[#This Row],[Canales]],Tabla39[],2,FALSE) -> 0.15 | G185: =Rtdos_de_la_Empresa8[[#This Row],[Margen]]*Rtdos_de_la_Empresa8[[#This Row],[Facturación]] -> 36156.9 | H185: =YEAR(Rtdos_de_la_Empresa8[[#This Row],[Fecha de Facturacion]]) -> 2009 | I185: =ROUNDUP(MONTH(Rtdos_de_la_Empresa8[[#This Row],[Fecha de Facturacion]])/3, 0) -> 1
A186: 40179 | B186: Hoteles | C186: Benelux | D186: 261382 | E186: 1719 | F186: =VLOOKUP(Rtdos_de_la_Empresa8[[#This Row],[Canales]],Tabla39[],2,FALSE) -> 0.15 | G186: =Rtdos_de_la_Empresa8[[#This Row],[Margen]]*Rtdos_de_la_Empresa8[[#This Row],[Facturación]] -> 39207.3 | H186: =YEAR(Rtdos_de_la_Empresa8[[#This Row],[Fecha de Facturacion]]) -> 2010 | I186: =ROUNDUP(MONTH(Rtdos_de_la_Empresa8[[#This Row],[Fecha de Facturacion]])/3, 0) -> 1
A187: 40299 | B187: Agencia | C187: Italia-Francia | D187: 295264 | E187: 2068.5 | F187: =VLOOKUP(Rtdos_de_la_Empresa8[[#This Row],[Canales]],Tabla39[],2,FALSE) -> 0.2 | G187: =Rtdos_de_la_Empresa8[[#This Row],[Margen]]*Rtdos_de_la_Empresa8[[#This Row],[Facturación]] -> 59052.8 | H187: =YEAR(Rtdos_de_la_Empresa8[[#This Row],[Fecha de Facturacion]]) -> 2010 | I187: =ROUNDUP(MONTH(Rtdos_de_la_Empresa8[[#This Row],[Fecha de Facturacion]])/3, 0) -> 2
A188: 39934 | B188: Agencia | C188: Resto de Europa | D188: 259764 | E188: 2118 | F188: =VLOOKUP(Rtdos_de_la_Empresa8[[#This Row],[Canales]],Tabla39[],2,FALSE) -> 0.2 | G188: =Rtdos_de_la_Empresa8[[#This Row],[Margen]]*Rtdos_de_la_Empresa8[[#This Row],[Facturación]] -> 51952.8 | H188: =YEAR(Rtdos_de_la_Empresa8[[#This Row],[Fecha de Facturacion]]) -> 2009 | I188: =ROUNDUP(MONTH(Rtdos_de_la_Empresa8[[#This Row],[Fecha de Facturacion]])/3, 0) -> 2
A189: 40452 | B189: Agencia | C189: Rusia-Paises del Este | D189: 257216 | E189: 2955 | F189: =VLOOKUP(Rtdos_de_la_Empresa8[[#This Row],[Canales]],Tabla39[],2,FALSE) -> 0.2 | G189: =Rtdos_de_la_Empresa8[[#This Row],[Margen]]*Rtdos_de_la_Empresa8[[#This Row],[Facturación]] -> 51443.2 | H189: =YEAR(Rtdos_de_la_Empresa8[[#This Row],[Fecha de Facturacion]]) -> 2010 | I189: =ROUNDUP(MONTH(Rtdos_de_la_Empresa8[[#This Row],[Fecha de Facturacion]])/3, 0) -> 4
A190: 39873 | B190: Directo | C190: Reino Unido | D190: 376154 | E190: 2863.5 | F190: =VLOOKUP(Rtdos_de_la_Empresa8[[#This Row],[Canales]],Tabla39[],2,FALSE) -> 0.4 | G190: =Rtdos_de_la_Empresa8[[#This Row],[Margen]]*Rtdos_de_la_Empresa8[[#This Row],[Facturación]] -> 150461.6 | H190: =YEAR(Rtdos_de_la_Empresa8[[#This Row],[Fecha de Facturacion]]) -> 2009 | I190: =ROUNDUP(MONTH(Rtdos_de_la_Empresa8[[#This Row],[Fecha de Facturacion]])/3, 0) -> 1
A191: 39753 | B191: Agencia | C191: America Norte-Sur | D191: 267673 | E191: 1993.5 | F191: =VLOOKUP(Rtdos_de_la_Empresa8[[#This Row],[Canales]],Tabla39[],2,FALSE) -> 0.2 | G191: =Rtdos_de_la_Empresa8[[#This Row],[Margen]]*Rtdos_de_la_Empresa8[[#This Row],[Facturación]] -> 53534.6 | H191: =YEAR(Rtdos_de_la_Empresa8[[#This Row],[Fecha de Facturacion]]) -> 2008 | I191: =ROUNDUP(MONTH(Rtdos_de_la_Empresa8[[#This Row],[Fecha de Facturacion]])/3, 0) -> 4
A192: 40330 | B192: Agencia | C192: Italia-Francia | D192: 287183 | E192: 1554 | F192: =VLOOKUP(Rtdos_de_la_Empresa8[[#This Row],[Canales]],Tabla39[],2,FALSE) -> 0.2 | G192: =Rtdos_de_la_Empresa8[[#This Row],[Margen]]*Rtdos_de_la_Empresa8[[#This Row],[Facturación]] -> 57436.6 | H192: =YEAR(Rtdos_de_la_Empresa8[[#This Row],[Fecha de Facturacion]]) -> 2010 | I192: =ROUNDUP(MONTH(Rtdos_de_la_Empresa8[[#This Row],[Fecha de Facturacion]])/3, 0) -> 2
A193: 40210 | B193: Agencia | C193: America Norte-Sur | D193: 249931 | E193: 784.5 | F193: =VLOOKUP(Rtdos_de_la_Empresa8[[#This Row],[Canales]],Tabla39[],2,FALSE) -> 0.2 | G193: =Rtdos_de_la_Empresa8[[#This Row],[Margen]]*Rtdos_de_la_Empresa8[[#This Row],[Facturación]] -> 49986.2 | H193: =YEAR(Rtdos_de_la_Empresa8[[#This Row],[Fecha de Facturacion]]) -> 2010 | I193: =ROUNDUP(MONTH(Rtdos_de_la_Empresa8[[#This Row],[Fecha de Facturacion]])/3, 0) -> 1
A194: 39508 | B194: Internet | C194: España | D194: 284319 | E194: 2907 | F194: =VLOOKUP(Rtdos_de_la_Empresa8[[#This Row],[Canales]],Tabla39[],2,FALSE) -> 0.4 | G194: =Rtdos_de_la_Empresa8[[#This Row],[Margen]]*Rtdos_de_la_Empresa8[[#This Row],[Facturación]] -> 113727.6 | H194: =YEAR(Rtdos_de_la_Empresa8[[#This Row],[Fecha de Facturacion]]) -> 2008 | I194: =ROUNDUP(MONTH(Rtdos_de_la_Empresa8[[#This Row],[Fecha de Facturacion]])/3, 0) -> 1
A195: 40238 | B195: Hoteles | C195: Alemania | D195: 263487 | E195: 529.5 | F195: =VLOOKUP(Rtdos_de_la_Empresa8[[#This Row],[Canales]],Tabla39[],2,FALSE) -> 0.15 | G195: =Rtdos_de_la_Empresa8[[#This Row],[Margen]]*Rtdos_de_la_Empresa8[[#This Row],[Facturación]] -> 39523.05 | H195: =YEAR(Rtdos_de_la_Empresa8[[#This Row],[Fecha de Facturacion]]) -> 2010 | I195: =ROUNDUP(MONTH(Rtdos_de_la_Empresa8[[#This Row],[Fecha de Facturacion]])/3, 0) -> 1
A196: 39539 | B196: Hoteles | C196: Resto de Paises | D196: 231499 | E196: 1321.5 | F196: =VLOOKUP(Rtdos_de_la_Empresa8[[#This Row],[Canales]],Tabla39[],2,FALSE) -> 0.15 | G196: =Rtdos_de_la_Empresa8[[#This Row],[Margen]]*Rtdos_de_la_Empresa8[[#This Row],[Facturación]] -> 34724.85 | H196: =YEAR(Rtdos_de_la_Empresa8[[#This Row],[Fecha de Facturacion]]) -> 2008 | I196: =ROUNDUP(MONTH(Rtdos_de_la_Empresa8[[#This Row],[Fecha de Facturacion]])/3, 0) -> 2
A197: 39539 | B197: Internet | C197: España | D197: 273436 | E197: 2196 | F197: =VLOOKUP(Rtdos_de_la_Empresa8[[#This Row],[Canales]],Tabla39[],2,FALSE) -> 0.4 | G197: =Rtdos_de_la_Empresa8[[#This Row],[Margen]]*Rtdos_de_la_Empresa8[[#This Row],[Facturación]] -> 109374.4 | H197: =YEAR(Rtdos_de_la_Empresa8[[#This Row],[Fecha de Facturacion]]) -> 2008 | I197: =ROUNDUP(MONTH(Rtdos_de_la_Empresa8[[#This Row],[Fecha de Facturacion]])/3, 0) -> 2
A198: 40330 | B198: Agencia | C198: Alemania | D198: 254791 | E198: 441 | F198: =VLOOKUP(Rtdos_de_la_Empresa8[[#This Row],[Canales]],Tabla39[],2,FALSE) -> 0.2 | G198: =Rtdos_de_la_Empresa8[[#This Row],[Margen]]*Rtdos_de_la_Empresa8[[#This Row],[Facturación]] -> 50958.2 | H198: =YEAR(Rtdos_de_la_Empresa8[[#This Row],[Fecha de Facturacion]]) -> 2010 | I198: =ROUNDUP(MONTH(Rtdos_de_la_Empresa8[[#This Row],[Fecha de Facturacion]])/3, 0) -> 2
A199: 40360 | B199: Agencia | C199: Italia-Francia | D199: 275861 | E199: 2061 | F199: =VLOOKUP(Rtdos_de_la_Empresa8[[#This Row],[Canales]],Tabla39[],2,FALSE) -> 0.2 | G199: =Rtdos_de_la_Empresa8[[#This Row],[Margen]]*Rtdos_de_la_Empresa8[[#This Row],[Facturación]] -> 55172.2 | H199: =YEAR(Rtdos_de_la_Empresa8[[#This Row],[Fecha de Facturacion]]) -> 2010 | I199: =ROUNDUP(MONTH(Rtdos_de_la_Empresa8[[#This Row],[Fecha de Facturacion]])/3, 0) -> 3
A200: 39904 | B200: Directo | C200: Reino Unido | D200: 358080 | E200: 1635 | F200: =VLOOKUP(Rtdos_de_la_Empresa8[[#This Row],[Canales]],Tabla39[],2,FALSE) -> 0.4 | G200: =Rtdos_de_la_Empresa8[[#This Row],[Margen]]*Rtdos_de_la_Empresa8[[#This Row],[Facturación]] -> 143232 | H200: =YEAR(Rtdos_de_la_Empresa8[[#This Row],[Fecha de Facturacion]]) -> 2009 | I200: =ROUNDUP(MONTH(Rtdos_de_la_Empresa8[[#This Row],[Fecha de Facturacion]])/3, 0) -> 2
... 242 more rows

Sheet TD1
C3: Periodos
C4: 2008 | G4: Total 2008 | H4: 2009 | L4: Total 2009 | M4: 2010 | Q4: Total 2010
B5: Rótulos de fila | C5: 1 | D5: 2 | E5: 3 | F5: 4 | H5: 1 | I5: 2 | J5: 3 | K5: 4 | M5: 1 | N5: 2 | O5: 3 | P5: 4
B6: Agencia
B7: Total Contratos | C7: 6691.5 | D7: 14202 | E7: 8031 | F7: 14512.5 | G7: 43437 | H7: 13869 | I7: 20059.5 | J7: 10309.5 | K7: 14517 | L7: 58755 | M7: 12279 | N7: 22764 | O7: 17959.5 | P7: 6744 | Q7: 59746.5
B8: Total Facturación | C8: 810301 | D8: 1633472 | E8: 1348101 | F8: 2306217 | G8: 6098091 | H8: 1978000 | I8: 2354089 | J8: 1222764 | K8: 1643265 | L8: 7198118 | M8: 2038427 | N8: 3121246 | O8: 2157767 | P8: 706133 | Q8: 8023573
B9: Total Ganancia | C9: 162060.2 | D9: 326694.4 | E9: 269620.2 | F9: 461243.4 | G9: 1219618.2 | H9: 395600 | I9: 470817.8 | J9: 244552.8 | K9: 328653 | L9: 1439623.6 | M9: 407685.4 | N9: 624249.2 | O9: 431553.4 | P9: 141226.6 | Q9: 1604714.6
B10: Directo
B11: Total Contratos | C11: 22180.5 | D11: 25917 | E11: 23274 | F11: 33937.5 | G11: 105309 | H11: 28221 | I11: 16377 | J11: 24688.5 | K11: 17917.5 | L11: 87204 | M11: 21984 | N11: 12988.5 | O11: 14394 | P11: 4153.5 | Q11: 53520
B12: Total Facturación | C12: 3166637 | D12: 3860161 | E12: 3161373 | F12: 4301563 | G12: 14489734 | H12: 4782378 | I12: 3033620 | J12: 4516076 | K12: 3130286 | L12: 15462360 | M12: 3313170 | N12: 2911850 | O12: 2285576 | P12: 582933 | Q12: 9093529
B13: Total Ganancia | C13: 1266654.8 | D13: 1544064.4 | E13: 1264549.2 | F13: 1720625.2 | G13: 5795893.6 | H13: 1912951.2 | I13: 1213448 | J13: 1806430.4 | K13: 1252114.4 | L13: 6184944 | M13: 1325268 | N13: 1164740 | O13: 914230.4 | P13: 233173.2 | Q13: 3637411.6
B14: Hoteles
B15: Total Contratos | C15: 9937.5 | D15: 15588 | E15: 13216.5 | F15: 9645 | G15: 48387 | H15: 12724.5 | I15: 23536.5 | J15: 10159.5 | K15: 13408.5 | L15: 59829 | M15: 10602 | N15: 15736.5 | O15: 20920.5 | P15: 996 | Q15: 48255
B16: Total Facturación | C16: 1736571 | D16: 1660301 | E16: 1484930 | F16: 827488 | G16: 5709290 | H16: 1692056 | I16: 2492933 | J16: 1101554 | K16: 1964137 | L16: 7250680 | M16: 1768293 | N16: 2661412 | O16: 2186137 | P16: 265392 | Q16: 6881234
B17: Total Ganancia | C17: 260485.65 | D17: 249045.15 | E17: 222739.5 | F17: 124123.2 | G17: 856393.5 | H17: 253808.4 | I17: 373939.95 | J17: 165233.1 | K17: 294620.55 | L17: 1087602 | M17: 265243.95 | N17: 399211.8 | O17: 327920.55 | P17: 39808.8 | Q17: 1032185.1
B18: Internet
B19: Total Contratos | C19: 18864 | D19: 15811.5 | E19: 22999.5 | F19: 14886 | G19: 72561 | H19: 10090.5 | I19: 8103 | J19: 22923 | K19: 21697.5 | L19: 62814 | M19: 21543 | N19: 11707.5 | O19: 15163.5 | P19: 10503 | Q19: 58917
B20: Total Facturación | C20: 3572424 | D20: 2515691 | E20: 3201158 | F20: 2663927 | G20: 11953200 | H20: 1901940 | I20: 2278894 | J20: 3156196 | K20: 2719844 | L20: 10056874 | M20: 3173509 | N20: 2173987 | O20: 2412105 | P20: 1616060 | Q20: 9375661
B21: Total Ganancia | C21: 1428969.6 | D21: 1006276.4 | E21: 1280463.2 | F21: 1065570.8 | G21: 4781280 | H21: 760776 | I21: 911557.6 | J21: 1262478.4 | K21: 1087937.6 | L21: 4022749.6 | M21: 1269403.6 | N21: 869594.8 | O21: 964842 | P21: 646424 | Q21: 3750264.4
S36: Definición de Rangos
S37: Años | T37: Periodos | U37: Canales | V37: Variables
S38: 2008 | T38: 1 | U38: Agencia | V38: Total Contratos
S39: 2009 | T39: 2 | U39: Directo | V39: Total Facturación
S40: 2010 | T40: 3 | U40: Hoteles | V40: Total Ganancia
T41: 4 | U41: Internet
T42: Todo

Sheet CM1
B1: Cuadro de Mando -KPI - Alquiler de Coches
B2: Key Performance Indicators o Indicadores Clave de Desempeño
B3: Area de Selección
D4: Año | E4: Trimestre | F4: Canal
C5: Opción 1 | D5: 2009 | E5: Todo | F5: Agencia
C7: Opción 2 | D7: 2008 | E7: Todo | F7: Agencia
B10: Area de Resultados
C11: Variables | F11: KPI
C12: Total Contratos | D12: Total Facturación | E12: Total Ganancia | F12: Facturación por Cliente | G12: Ganancia por Cliente | I12: % Ganancia
B14: =F5&"-"&D5&"-"&E5 -> Agencia-2009-Todo | C14: =IF($E$5="Todo",GETPIVOTDATA("Total Contratos",'TD1'!$B$3,"Canales",$F$5,"Año",$D$5),GETPIVOTDATA("Total Contratos",'TD1'!$B$3,"Canales",$F$5,"Año",$D$5,"Trimestre",$E$5)) -> 58755 | D14: =IF($E$5="Todo",GETPIVOTDATA("Total Facturación",'TD1'!$B$3,"Canales",$F$5,"Año",$D$5),GETPIVOTDATA("Total Facturación",'TD1'!$B$3,"Canales",$F$5,"Año",$D$5,"Trimestre",$E$5)) -> 7198118 | E14: =IF($E$5="Todo",GETPIVOTDATA("Total Ganancia",'TD1'!$B$3,"Canales",$F$5,"Año",$D$5),GETPIVOTDATA("Total Ganancia",'TD1'!$B$3,"Canales",$F$5,"Año",$D$5,"Trimestre",$E$5)) -> 1439623.6 | F14: =D14/C14 -> 122.510731 | G14: =E14/C14 -> 24.5021462 | I14: =E14/D14 -> 0.2
B15: =F7&"-"&D7&"-"&E7 -> Agencia-2008-Todo | C15: =IF($E$7="Todo",GETPIVOTDATA("Total Contratos",'TD1'!$B$3,"Canales",$F$7,"Año",$D$7),GETPIVOTDATA("Total Contratos",'TD1'!$B$3,"Canales",$F$7,"Año",$D$7,"Trimestre",$E$7)) -> 43437 | D15: =IF($E$7="Todo",GETPIVOTDATA("Total Facturación",'TD1'!$B$3,"Canales",$F$7,"Año",$D$7),GETPIVOTDATA("Total Facturación",'TD1'!$B$3,"Canales",$F$7,"Año",$D$7,"Trimestre",$E$7)) -> 6098091 | E15: =IF($E$7="Todo",GETPIVOTDATA("Total Ganancia",'TD1'!$B$3,"Canales",$F$7,"Año",$D$7),GETPIVOTDATA("Total Ganancia",'TD1'!$B$3,"Canales",$F$7,"Año",$D$7,"Trimestre",$E$7)) -> 1219618.2 | F15: =D15/C15 -> 140.3893225 | G15: =E15/C15 -> 28.07786449 | I15: =E15/D15 -> 0.2
B16: Variación | C16: =C14-C15 -> 15318 | D16: =D14-D15 -> 1100027 | E16: =E14-E15 -> 220005.4 | F16: =F14-F15 -> -17.87859147 | G16: =G14-G15 -> -3.575718293 | I16: =I14-I15 -> 0
C17: =C16/C14 -> 0.2607097268 | D17: =D16/D14 -> 0.1528214736 | E17: =E16/E14 -> 0.1528214736 | F17: =F16/F14 -> -0.1459349015 | G17: =G16/G14 -> -0.1459349015 | I17: =I16/I14 -> 0

Sheet TD2
B1: Año | C1: (Todas)
B2: Trimestre | C2: (Todas)
B3: Canales | C3: (Todas)
C5: Valores | H5: Seleccionar Gráfico
B6: Rótulos de fila | C6: Total Contratos | D6: Total Facturación | E6: Total Ganancia | F6: % G | H6: 2
B7: Reino Unido | C7: 90157.5 | D7: 12071542 | E7: 4127891.75 | F7: 0.1165653581
B8: Italia-Francia | C8: 73461 | D8: 11273182 | E8: 4007910.7 | F8: 0.1131772765
B9: España | C9: 80424 | D9: 11471372 | E9: 3943322.6 | F9: 0.1113534072
B10: Paises Nórdicos | C10: 78864 | D10: 11364002 | E10: 3752118.35 | F10: 0.1059540913
B11: Alemania | C11: 72909 | D11: 11422135 | E11: 3650052.55 | F11: 0.103071909
B12: Benelux | C12: 67326 | D12: 11224035 | E12: 3445522.8 | F12: 0.09729630123
B13: Resto de Europa | C13: 72676.5 | D13: 10729523 | E13: 3400686.4 | F13: 0.09603018977
B14: America Norte-Sur | C14: 72973.5 | D14: 10602105 | E14: 3158329.6 | F14: 0.08918640391
B15: Rusia-Paises del Este | C15: 75204 | D15: 11190470 | E15: 3098149.95 | F15: 0.08748702252
B16: Resto de Paises | C16: 74739 | D16: 10243978 | E16: 2828695.5 | F16: 0.07987804041
B17: Total general | C17: 758734.5 | D17: 111592344 | E17: 35412680.2 | F17: 1

Sheet Graficos (hidden)
H5: Lista
H6: G Total Contratos
H7: G Total Facturacion
H8: G Total Ganancias
H9: G Porcentaje de Ganancias
H12: Xcontratos | I12: =Graficos!$A$5:$F$18
H13: Xfacturacion | I13: =Graficos!$A$20:$F$33
H14: Xganancias | I14: =Graficos!$A$35:$F$48
H15: Xgananciasp | I15: =Graficos!$A$50:$F$63
H16: T | I16: =ELEGIR('TD2'!$H$6;Xcontratos;Xfacturacion;Xganancias;Xgananciasp)

Sheet Hoja1
